Workbook

Sheet 時間
B1: 11:00 | C1: 12:00 | D1: 1:00 | H1: フランス軍 | I1: 連合軍 | K1: =天候!A20 -> LOSの最大HEX | L1: =天候!F20 -> 無限
A2: 10:00 | B2: :00 | E2: 2:00 | G2: 指揮 | K2: =天候!A21 -> 散開隊形の射撃射程HEX | L2: =天候!F21 -> 2
A3: 9:00 | B3: :20 | E3: 3:00 | G3: 騎兵突撃 | K3: =天候!A22 -> 騎兵突撃 | L3: =天候!F22 -> 可能
A4: 8:00 | B4: :40 | E4: 4:00 | G4: 移動 | K4: =天候!A23 -> 騎兵突撃のボーナス | L4: =天候!F23 -> 移動力＋５
B5: 7:00 | C5: 6:00 | D5: 5:00 | G5: 敵軍の防御射撃 | K5: =天候!A24 -> 歩兵射撃の可否 補正(%) | L5: =天候!F24 -> 0
A6: シート保護中 | D6: 午後1時は13と入力 | G6: 自軍の攻勢射撃 | K6: =天候!A25 -> 砲兵射撃の可否 補正(%) | L6: =天候!F25 -> 0
A7: 時間帯 | B7: 天候 | C7: 場所 | D7: 開始時 | E7: 開始分 | G7: 白兵戦 | K7: =天候!A26 -> 歩兵移動力補正(%) | L7: =天候!F26 -> 0
A8: 昼 | B8: 晴 | C8: =IF(B8="雷雨",天候変化!N31,"") ->  | D8: 5 | E8: 0 | G8: 回復 | K8: =天候!A27 -> 騎兵移動力補正(%) | L8: =天候!F27 -> 0
K9: =天候!A28 -> 砲兵移動力補正(%) | L9: =天候!F28 -> 0
A14: 天候条件設定 | C14: 現在＝ | D14: Raszyn
B15: ＜ME版＞ | G15: ＜COA版＞

Sheet 移動
B1: 移動力 | F1: 移動力
B2: 印刷値 | C2: 補正後 | F2: 印刷値 | G2: 補正後
A3: 歩兵 | B3: 4 | C3: =B3*(100+天候!E$26)/100 -> 4 | E3: 砲兵 | F3: 4 | G3: =F3*(100+天候!E$28)/100 -> 4
B4: 5 | C4: =B4*(100+天候!E$26)/100 -> 5 | F4: 5 | G4: =F4*(100+天候!E$28)/100 -> 5
B5: 6 | C5: =B5*(100+天候!E$26)/100 -> 6 | F5: 6 | G5: =F5*(100+天候!E$28)/100 -> 6
B6: 7 | C6: =B6*(100+天候!E$26)/100 -> 7 | F6: 7 | G6: =F6*(100+天候!E$28)/100 -> 7
B7: 8 | C7: =B7*(100+天候!E$26)/100 -> 8 | F7: 8 | G7: =F7*(100+天候!E$28)/100 -> 8
B8: 9 | C8: =B8*(100+天候!E$26)/100 -> 9 | F8: 9 | G8: =F8*(100+天候!E$28)/100 -> 9
F9: 10 | G9: =F9*(100+天候!E$28)/100 -> 10
A10: 騎兵 | B10: 7 | C10: =B10*(100+天候!E$27)/100 -> 7 | F10: 11 | G10: =F10*(100+天候!E$28)/100 -> 11
B11: 8 | C11: =B11*(100+天候!E$27)/100 -> 8 | F11: 12 | G11: =F11*(100+天候!E$28)/100 -> 12
B12: 9 | C12: =B12*(100+天候!E$27)/100 -> 9
B13: 10 | C13: =B13*(100+天候!E$27)/100 -> 10
B14: 11 | C14: =B14*(100+天候!E$27)/100 -> 11
B15: 12 | C15: =B15*(100+天候!E$27)/100 -> 12
B16: 13 | C16: =B16*(100+天候!E$27)/100 -> 13
B17: 14 | C17: =B17*(100+天候!E$27)/100 -> 14
B18: 15 | C18: =B18*(100+天候!E$27)/100 -> 15
B19: 16 | C19: =B19*(100+天候!E$27)/100 -> 16

Sheet 射撃
B1: 目標 | D1: 備考 | F1: 計算用作業領域
A2: 地形防御値 | B2: 6
A3: 目標戦力数 | B3: 11 | F3: =IF(B3<10,0,B3-9) -> 2
A4: 隣接補正 | D4: 砲兵の目標の場合に隣接なら1、それ以外は空白（散弾射撃用） | F4: 補正後＝ | G4: 1.50999999 | H4: 散弾射撃時の射撃比
B6: 射撃側１ | C6: 射撃側２ | D6: 単独の場合は射撃側２の射撃値と戦力数を０か空白
A7: 射撃値 | B7: 12 | D7: 縦隊、一般隊形、大隊密集、師団密集、混乱または砲兵の場合
A8: 戦力数 | B8: 0 | D8: 横隊、散開隊形、方陣の場合
A9: 掛算係数 | B9: 1 | D9: 上記隊形のチャートの値を参照、上記以外は１
A10: 割算係数 | B10: 1 | D10: 方陣は３、混乱は２、その他、何もなければ１ | F10: =IF(B10<>0,(B7+B8*B9)/B10,0) -> 12 | G10: =IF(C10<>0,(C7+C8*C9)/C10,0) -> 0 | H10: 個別射撃力
A11: 指揮官修正（モラル値） | D11: 一緒なら印刷値、隣接HEXに居れば印刷値÷２（切捨て） | F11: =ROUNDDOWN(B12/10,0)*6+(B12-ROUNDDOWN(B12/10,0)*10)-B14-B11-F13 -> 12 | G11: =ROUNDDOWN(C12/10,0)*6+(C12-ROUNDDOWN(C12/10,0)*10)-C14-C11-G13 -> 0 | H11: 個別モラル
A12: ユニットモラル値 | B12: 16 | D12: モラル補正しない場合は0か空白 | F12: =(F11*F10+G11*G10)/(F10+G10) -> 12 | H12: 比例配分によるモラル合計
A13: 50%以上戦力損失 | D13: 損失ありなら１、その他は０か空白 | F13: =IF(B13=1,-6,0) -> 0 | G13: =IF(C13=1,-6,0) -> 0 | H13: 50%以上戦力損失によるモラル補正
A14: 部隊モラル修正 | D14: 軍団・師団・旅団などの管理単位毎の修正値（マイナス）
A15: 英国ライフル中隊修正 | D15: 射撃側に英国ライフル中隊が居る場合は1、居ない場合は空白 | F15: セル色＝ | G15: 49407 | H15: (注)マクロが動作すると、再度乱数が発生して上書される。
F16: 乱数２＝ | G16: =士気2!J39 -> 27 | H16: ：射撃結果判定用（１〜３６）
A17: 射撃側の兵科 | B17: 歩兵 | C17: 砲兵 | F17: =1+((天候!E24)/100) -> 1 | G17: =1+((天候!E25)/100) -> 1 | H17: 歩兵と砲兵の天候補正値
A18: 射撃比 | B18: =($F$10+$G$10)*F17/$B$2 -> 2 | C18: =($F$10+$G$10)*G17/$B$2 -> 2 | D18: 時間帯・天候による補正 | F18: =ROUNDDOWN((18-$F$12)/3,0)+$F$3 -> 4 | G18: =ROUNDDOWN((18-$F$12)/3,0)+$F$3 -> 4 | H18: モラルと密集目標によるダイス修正値
A19: ダイス修正値 | B19: =IF($B$12<>0,F18,$F$3) -> 4 | C19: =IF($B$12<>0,G18,$F$3) -> 4 | F19: 乱数４＝ | G19: =士気2!J41 -> 5 | H19: ：死傷種別用（１〜５）
A20: 射撃による損失 | B20: 1 | C20: 1 | D20: 判定後は色が変わる | F20: 乱数３＝ | G20: =士気2!J40 -> 6 | H20: ：脚負傷用（２〜１２）
A21: 指揮官の死傷 | B21: なし | F21: 乱数１＝ | G21: =士気2!J38 -> 2 | H21: ：腕負傷用（１〜６）

Sheet 白兵
B1: 攻撃側１ | C1: 攻撃側２ | D1: 防御側１ | E1: 防御側２ | F1: 1:縦隊、2:横隊、3:散開隊形、4:一般隊形、5:行軍隊形、 6:方陣、7:大隊密集、8:師団密集、9:牽引隊形、 10:展開隊形、11:混乱、12:潰走 | H1: 計算用作業領域
A2: 白兵戦値 | B2: 14 | D2: 13
A3: 初期戦力数 | B3: 7 | D3: 6 | H3: 乱数１＝ | I3: =士気2!J38 -> 2 | J3: ：死傷種別用（１〜６）
A4: 現在戦力数 | B4: 6 | D4: 5 | F4: 単独の場合は攻撃側２、防御側２の現在戦力数を０か空白 | H4: 乱数２＝ | I4: =士気2!J39 -> 27 | J4: ：白兵戦結果判定用（１〜３６）
A5: 兵科 | B5: 1 | D5: 1 | F5: 歩兵は1、 騎兵は2、 砲兵は3
A6: 隊形 | B6: 2 | D6: 6 | F6: 上記の種別参照 | H6: =IF(B3/2<B4,0,-6) -> 0 | I6: =IF(C3/2<C4,0,-6) -> -6 | J6: =IF(D3/2<D4,0,-6) -> 0 | K6: =IF(E3/2<E4,0,-6) -> -6 | L6: 50%損失判定
A7: 騎兵の疲労状態 | F7: 通常は1、 疲労は2、 損耗は3、 騎兵以外は空白 | H7: =ROUNDDOWN(B15/10,0)*6+(B15-ROUNDDOWN(B15/10,0)*10)-H6-B16-B14*3 -> 15 | I7: =ROUNDDOWN(C15/10,0)*6+(C15-ROUNDDOWN(C15/10,0)*10)-I6-C16-C14*3 -> 6 | J7: =ROUNDDOWN(D15/10,0)*6+(D15-ROUNDDOWN(D15/10,0)*10)-J6-D16-D14*3 -> 18 | K7: =ROUNDDOWN(E15/10,0)*6+(E15-ROUNDDOWN(E15/10,0)*10)-K6-E16-E14*3 -> 6 | L7: 個別モラル
A8: 防御側から見た攻撃方向 | F8: 側面は1、 背面は2、 正面は空白（防御側が方陣なら自動的に空白） | I8: =(H7*B4+I7*C4)/(B4+C4) -> 15 | K8: =(J7*D4+K7*E4)/(D4+E4) -> 18 | L8: 比例配分によるモラル合計
A9: 攻撃を緩和する地形 | F9: 小川を渡る攻撃なら1、 その他は空白 | H9: =ROUNDDOWN((K8-I8)/3,0) -> 1 | L9: モラルによるダイス補正
A10: 騎兵突撃 | F10: 騎兵突撃なら1、 その他は空白 | H10: =IF(B5=2,IF(B11=3,ROUNDUP(B12*B4/B3,0),0),0) -> 0 | I10: =IF(C5=2,IF(C11=3,ROUNDUP(C12*C4/C3,0),0),0) -> 0 | J10: 0 | K10: 0 | M10: 槍ボーナス減少
A11: 騎兵種別 | F11: 重騎兵なら1、 軽騎兵なら2、 槍騎兵なら3、 その他は空白 | H11: =IF(B6=2,H10*2,H10) -> 0 | I11: =IF(C6=2,I10*2,I10) -> 0 | J11: 0 | K11: 0 | M11: 横隊補正
A12: 槍ボーナス | F12: 槍騎兵以外は空白 | H12: =IF(B3<>"",B2*B4/B3+H11,0) -> 12 | I12: =IF(C3<>"",C2*C4/C3+I11,0) -> 0 | J12: 10.83333333 | K12: 0 | L12: =(H12+I12)/(J12+K12) -> 1.107692308 | M12: 基本
H13: 12 | I13: 0 | J13: 10.83333302 | K13: 0 | L13: 1.10769234 | M13: 隊形補正
A14: 指揮官修正（白兵戦値） | B14: 1 | D14: 2 | F14: 一緒なら印刷値、隣接HEXに居れば印刷値÷２（切捨て） | H14: 12 | I14: 0 | J14: 10.83333302 | K14: 0 | L14: 1.10769234 | M14: 疲労補正
A15: ユニットモラル値 | B15: 26 | D15: 33 | F15: モラル補正しない場合は0か空白 | H15: 12 | I15: 0 | J15: 10.83333302 | K15: 0 | L15: 1.10769234 | M15: 突撃補正
A16: 部隊モラル修正 | D16: -3 | F16: 軍団・師団・旅団などの管理単位毎の修正値（マイナス） | H16: 12 | I16: 0 | J16: =J15 -> 10.83333302 | K16: =K15 -> 0 | L16: 1.10769234 | M16: 地形補正
H17: 18 | I17: 0 | J17: 10.83333302 | K17: 0 | L17: 1.66153851 | M17: 方陣補正
H18: 18 | I18: 0 | J18: 10.83333302 | K18: 0 | L18: 1.66153851 | M18: 攻撃方向補正
A19: 戦力比 | B19: 1.661538482 | H19: 18 | I19: 0 | J19: 10.83333302 | K19: 0 | L19: 1.66153851 | M19: 重騎兵補正
A20: ダイス修正値 | B20: =H9 -> 1
B21: 攻撃側 | D21: 防御側
A22: 白兵戦結果 | B22: 2 | D22: モラルチェックと2 | F22: 判定後は色が変わる
A23: 指揮官の死傷

Sheet 追撃
B1: 騎兵１ | C1: 騎兵２ | F1: 計算用作業領域
A2: 戦力数 | B2: 12 | C2: 7 | D2: 単独の場合は騎兵２の戦力数を０か空白 | F2: =(0.75*(F8*B2*F3+G8*C2*G3)) -> 9.9252
A3: モラル値 | B3: 14 | C3: 15 | F3: =IF(B7>10,10,B7) -> 10 | G3: =IF(C7>10,10,C7) -> 10 | H3: 移動力補正（１０以下）
A4: 50%以上戦力損失 | D4: 損失ありなら１、その他は０ | F4: =IF(B4=1,-6,0) -> 0 | G4: =IF(C4=1,-6,0) -> 0 | H4: 50%以上戦力損失によるモラル補正
A5: 指揮官修正（騎兵値） | F5: 乱数３＝ | G5: =士気2!J40 -> 6 | H5: ：サーベル命中用（２〜１２）
A6: 特別ボーナス | B6: 12 | C6: 0 | D6: ヴィストラ槍騎兵は１２、ポーランド槍騎兵は６、その他は０ | F6: =G5 -> 6 | G6: =F6 -> 6 | H6: ２つダイス値の合計
A7: 移動力の残数 | B7: 10 | C7: 10 | D7: 突撃時は５加算（但し、MAX10) | F7: =ROUNDDOWN(B3/10,0)*6+(B3-ROUNDDOWN(B3/10,0)*10) -> 10 | G7: =ROUNDDOWN(C3/10,0)*6+(C3-ROUNDDOWN(C3/10,0)*10) -> 11 | H7: 個別モラル
A8: 追撃戦果(step数） | B8: 9 | D8: 判定後は色が変わる | F8: =(F6+(18-F7+F4)/3+B5+B6)/100*$F9 -> 0.08928 | G8: =(G6+(18-G7+G4)/3+C5+C6)/100*$F9 -> 0.036 | H8: Hitする確率
F9: 0.432 | H9: 調整パラメータ
F12: 騎兵の速度を約12km/hとして、1HEX(100m)を通過する時間は30秒。
A13: 支援ツールで判定しない場合に使う賽の目 | F13: １０分間（１ターンの１／２で自軍の割合）の平均で考えて、30秒でサーベルを振れる回数は、約１〜２回。
A14: サイコロ１ヶ用（１〜６） | B14: 1 | F14: Hitする確率をＮとして、１．５×Ｎが１人１ＨＥＸでの成果。
A15: サイコロ２ヶ用（１１〜６６） | B15: 45 | F15: 騎兵は歩兵に比べて1/2の人数で１戦力なので、１．５Ｎ×戦力数÷２が１HEX当たり歩兵に与える損失。
F16: 移動できるＨＥＸ数を掛けて０．７５Ｎ×戦力数×移動力残数が歩兵に与える合計損失。
F17: Hitする確率をＮは、ダイスの目、モラル値、指揮官修正、特別ボーナスを考えて、以下とする。
F18: Ｎ＝（ダイスの目＋（１８ーモラル値）÷３＋指揮官修正＋特別ボーナス）÷１００×α
F20: α＝調整パラメータで、下記を参考し決定。
F21: Albuera
F22: 1st Vistula Lancer | H22: morale=14, strength=12
F23: 2nd Hussar | H23: morale=15, strength=7
F24: が英国大隊約1300名を５分間で損失させた。
F25: 10HEX移動には5分間必要（12km/hの速度で）。

Sheet 士気
K1: 作業領域
F2: 判定後は色が変わる | K2: 5 | L2: 5 | M2: データ数
K3: 1 | L3: 1 | M3: 部隊数
A4: フランス軍 | F4: 連合軍
A5: 部隊名称 | B5: 離脱大隊数 | C5: 士気レベル | D5: 部隊モラル | F5: 部隊名称 | G5: =B5 -> 離脱大隊数 | H5: 士気レベル | I5: 部隊モラル
A6: ポーランド軍 | B6: 2 | C6: 0 | D6: 0 | F6: オーストリア軍 | G6: 5 | H6: 1 | I6: -3

Sheet 士気2
C1: 現在フェーズ | D1: 指揮 | I1: 計算用作業領域 | K1: 1 | L1: フェーズ番号
C2: 兵科 | D2: 歩兵 | E2: 騎兵 | F2: 砲兵 | G2: 1:縦隊、2:横隊、3:散開隊形、4:一般隊形、5:行軍隊形、 6:方陣、7:大隊密集、8:師団密集、9:牽引隊形、 10:展開隊形、11:混乱、12:潰走 | K2: 1 | L2: 軍の番号
A3: 全てのフェーズ共通
B4: 基本補正
C5: 隊形 | D5: 1 | G5: 上記の種別参照。 | I5: 21 | J5: 0 | K5: 0 | L5: 基本修正最終
C6: ユニットモラル値 | D6: 33 | G6: 印刷値（26ならそのまま入力） | I6: 21 | J6: 0 | K6: 0
C7: 50%以上戦力損失 | G7: 損失ありなら１、その他は空白 | I7: 0 | J7: 0 | K7: 0
C8: 指揮官修正（モラル値） | G8: 一緒なら印刷値、隣接HEXに居れば印刷値÷２（切捨て） | I8: 21 | J8: 0 | K8: 0
C9: 部隊モラル修正 | G9: 軍団・師団・旅団などの管理単位毎の修正値（マイナス） | I9: 21 | J9: 0 | K9: 0
B10: 特殊ルールの補正 | G10: 全てのフェーズに適用する特殊補正（Vauchampsの奇襲表などの補正） | I10: 21 | J10: 0 | K10: 0
A11: 移動フェーズ特有
B12: 騎兵と他の兵科との混在補正 | G12: （注）この判定をしない場合には、判定対象の兵科を全て空白にする
C13: 判定対象 | G13: 判定する兵科と騎兵に1、それ以外は空白 | I13: 27 | J13: 20
B14: 状態・国籍の混在補正 | G14: （注）混在（通過を含む）がなければ下記の段は全て空白
C15: 混在相手の部隊が混乱状態 | G15: 該当する場合に1、その他は空白。判定する部隊が通常状態の場合のみ。 | I15: 24
C16: 混在相手の部隊が潰走状態 | G16: 判定する部隊が通常か混乱の場合のみ。 | J16: 20
C17: 混在相手の国籍が違う | K17: 24
A18: 騎兵突撃、白兵戦フェーズ特有 | G18: （注）騎兵突撃で攻撃側の場合は、判定する側のみ入力する。（補正なし）
B19: 共通
C20: 判定する側 | D20: 2 | G20: 攻撃側は1、 防御側は2、 強襲後の士気判定の場合は空白 | I20: 2 | L20: 判定する側
C21: 攻撃側戦力 | D21: 6 | G21: （注）砲兵は攻撃側に入力できない（自動的に空白） | I21: 6 | L21: 戦力比補正値
C22: 防御側戦力 | D22: 4 | G22: 攻撃側、防御側とも参加する兵科の欄に戦力を入力 | I22: 15 | J22: 0 | K22: 0 | L22: 戦力比補正後
B23: 騎兵突撃フェーズ特有（突撃を受ける側の判定） | G23: （注）歩兵・砲兵の場合のみ。両方の場合は歩兵欄のみに入力する。 | I23: 15 | K23: 12
C24: 突撃を受ける方向 | G24: 1:側面、 2:背面、 空白：正面（方陣は自動的に正面扱い） | I24: 15 | K24: 12
C25: 小川を渡る突撃 | G25: 騎兵が小川を渡る突撃なら1、それ例外は空白 | I25: 15 | K25: 12
C26: 騎兵の種類 | G26: 1:槍騎兵、 2:重騎兵、 空白：左記以外 | I26: 15 | K26: 12
B27: 白兵戦フェーズ固有 | G27: 判定する側の兵科のみ入力
C28: 強襲を受ける方向 | G28: 防御側から見た方向で、1:側面、 2:背面、 空白：正面（方陣は正面扱い） | I28: 18
C29: 障害地形をまたぐ強襲 | G29: 登坂なら1、小川なら2、両方なら3、それ例外は空白 | I29: 18
C30: 防御側の隊形 | G30: 攻撃側の場合のみ入力（上記の種別参照） | I30: 18
C31: 射撃により損出した戦力 | G31: 攻撃側の場合のみ入力 | I31: 24
A32: 特定フェーズに追加 | G32: 騎兵突撃、移動、防御射撃、白兵戦のフェーズで追加
B33: 砲兵への白兵戦判定用 | G33: （注）歩兵・騎兵の場合のみ
C34: 砲兵の短距離射撃力 | G34: 目標とする砲兵の射撃力を入力 | I34: 18 | J34: 14
C35: 射撃により損出した戦力 | I35: 18 | J35: 17
J36: 7
D38: 歩兵 | E38: 騎兵 | F38: 砲兵 | I38: 乱数１＝ | J38: 2 | K38: ：サイコロ１ヶ用（１〜６）
C39: 士気判定結果 | D39: 失敗 | G39: 判定後は色が変わる | I39: 乱数２＝ | J39: 27 | K39: ：サイコロ２ヶ用（１〜３６）
I40: 乱数３＝ | J40: 6 | K40: ：サイコロ２ヶ加算用（２〜１２）
I41: 乱数４＝ | J41: 5 | K41: ：サイコロ１ヶ用（１〜５）
I42: 乱数５＝ | J42: 33 | K42: ：サイコロ２ヶ用２回目（１〜３６）

Sheet 部隊モラル表
A1: フランス軍 | B1: ラシン用（自家製） | F1: 連合軍
A2: 部隊名称 | B2: 離脱大隊数 | C2: 士気レベル | D2: 部隊モラル | F2: =A2 -> 部隊名称 | G2: =B2 -> 離脱大隊数 | H2: 士気レベル | I2: 部隊モラル
A3: ポーランド軍 | B3: 3 | C3: 1 | D3: -3 | F3: オーストリア軍 | G3: 5 | H3: 1 | I3: -3
A4: ポーランド軍 | B4: 6 | C4: 2 | D4: -6 | F4: オーストリア軍 | G4: 10 | H4: 2 | I4: -6
A5: ポーランド軍 | B5: 9 | C5: 3 | D5: -12 | F5: オーストリア軍 | G5: 14 | H5: 3 | I5: -12

Sheet 時刻変化
B1: 時 | C1: 分 | D1: 時間帯 | E1: 天候 | G1: 現在時刻 | H1: 時 | I1: 分 | J1: 時間帯 | K1: 天候 | L1: 天候文字 | M1: 天候数値 | O1: 標準 | P1: Raszyn | Q1: Leipzig | R1: Friedland | S1: Danzig | T1: Vauchamps | U1: Aspern-Essling | V1: Schöngrabern | W1: Austerlitz | Y1: Auerstaedt | Z1: Eylau | AA1: Talavera | AB1: Albuera | AC1: Ligny | AD1: Quatre Bras | AE1: Mont St.Jean | AF1: Wavre | AG1: Corunna | AH1: Lützen | AI1: Moscowa | AJ1: Dresde25 | AK1: Dresde26 | AL1: Dresde27 | AM1: Dresde28
A2: =B2*100+C2 -> 0 | B2: 0 | C2: 0 | D2: 夜 | E2: 晴 | G2: =H2*100+I2 -> 500 | H2: 5 | I2: 0 | J2: =LOOKUP(G2,A2:A73,D2:D73) -> 昼 | K2: =LOOKUP(G2,A2:A73,E2:E73) -> 晴 | L2: =MID(K2,1,2) -> 晴 | M2: =IF(M3>2,MID(K2,3,M3-2),"") ->  | O2: 晴 | P2: 晴 | Q2: 晴 | R2: 晴 | S2: 晴 | T2: 晴 | U2: 晴 | V2: 晴 | W2: 晴 | Y2: 晴 | Z2: 晴 | AA2: 晴 | AB2: 晴 | AC2: 晴 | AD2: 晴 | AE2: 晴 | AF2: 晴 | AG2: 晴 | AH2: 晴 | AI2: 晴 | AJ2: 晴 | AK2: 晴 | AL2: 激しい雨 | AM2: 水浸し
A3: =B3*100+C3 -> 20 | B3: 0 | C3: 20 | D3: 夜 | E3: 晴 | M3: =LEN(K2) -> 1 | O3: 晴 | P3: 晴 | Q3: 晴 | R3: 晴 | S3: 晴 | T3: 晴 | U3: 晴 | V3: 晴 | W3: 晴 | Y3: 晴 | Z3: 晴 | AA3: 晴 | AB3: 晴 | AC3: 晴 | AD3: 晴 | AE3: 晴 | AF3: 晴 | AG3: 晴 | AH3: 晴 | AI3: 晴 | AJ3: 晴 | AK3: 晴 | AL3: 激しい雨 | AM3: 水浸し
A4: 40 | B4: 0 | C4: 40 | D4: 夜 | E4: 晴 | O4: 晴 | P4: 晴 | Q4: 晴 | R4: 晴 | S4: 晴 | T4: 晴 | U4: 晴 | V4: 晴 | W4: 晴 | Y4: 晴 | Z4: 晴 | AA4: 晴 | AB4: 晴 | AC4: 晴 | AD4: 晴 | AE4: 晴 | AF4: 晴 | AG4: 晴 | AH4: 晴 | AI4: 晴 | AJ4: 晴 | AK4: 晴 | AL4: 激しい雨 | AM4: 水浸し
A5: 100 | B5: 1 | C5: 0 | D5: 夜 | E5: 晴 | O5: 晴 | P5: 晴 | Q5: 晴 | R5: 晴 | S5: 晴 | T5: 晴 | U5: 晴 | V5: 晴 | W5: 晴 | Y5: 晴 | Z5: 晴 | AA5: 晴 | AB5: 晴 | AC5: 晴 | AD5: 晴 | AE5: 晴 | AF5: 晴 | AG5: 晴 | AH5: 晴 | AI5: 晴 | AJ5: 晴 | AK5: 晴 | AL5: 激しい雨 | AM5: 水浸し
A6: 120 | B6: 1 | C6: 20 | D6: 夜 | E6: 晴 | O6: 晴 | P6: 晴 | Q6: 晴 | R6: 晴 | S6: 晴 | T6: 晴 | U6: 晴 | V6: 晴 | W6: 晴 | Y6: 晴 | Z6: 晴 | AA6: 晴 | AB6: 晴 | AC6: 晴 | AD6: 晴 | AE6: 晴 | AF6: 晴 | AG6: 晴 | AH6: 晴 | AI6: 晴 | AJ6: 晴 | AK6: 晴 | AL6: 激しい雨 | AM6: 水浸し
A7: 140 | B7: 1 | C7: 40 | D7: 夜 | E7: 晴 | O7: 晴 | P7: 晴 | Q7: 晴 | R7: 晴 | S7: 晴 | T7: 晴 | U7: 晴 | V7: 晴 | W7: 晴 | Y7: 晴 | Z7: 晴 | AA7: 晴 | AB7: 晴 | AC7: 晴 | AD7: 晴 | AE7: 晴 | AF7: 晴 | AG7: 晴 | AH7: 晴 | AI7: 晴 | AJ7: 晴 | AK7: 晴 | AL7: 激しい雨 | AM7: 水浸し
A8: 200 | B8: 2 | C8: 0 | D8: 夜 | E8: 晴 | O8: 晴 | P8: 晴 | Q8: 晴 | R8: 晴 | S8: 晴 | T8: 晴 | U8: 晴 | V8: 晴 | W8: 晴 | Y8: 晴 | Z8: 晴 | AA8: 晴 | AB8: 晴 | AC8: 晴 | AD8: 晴 | AE8: 晴 | AF8: 晴 | AG8: 晴 | AH8: 晴 | AI8: 晴 | AJ8: 晴 | AK8: 晴 | AL8: 激しい雨 | AM8: 水浸し
A9: 220 | B9: 2 | C9: 20 | D9: 夜 | E9: 晴 | O9: 晴 | P9: 晴 | Q9: 晴 | R9: 晴 | S9: 晴 | T9: 晴 | U9: 晴 | V9: 晴 | W9: 晴 | Y9: 晴 | Z9: 晴 | AA9: 晴 | AB9: 晴 | AC9: 晴 | AD9: 晴 | AE9: 晴 | AF9: 晴 | AG9: 晴 | AH9: 晴 | AI9: 晴 | AJ9: 晴 | AK9: 晴 | AL9: 激しい雨 | AM9: 水浸し
A10: 240 | B10: 2 | C10: 40 | D10: 夜 | E10: 晴 | O10: 晴 | P10: 晴 | Q10: 晴 | R10: 晴 | S10: 晴 | T10: 晴 | U10: 晴 | V10: 晴 | W10: 晴 | Y10: 晴 | Z10: 晴 | AA10: 晴 | AB10: 晴 | AC10: 晴 | AD10: 晴 | AE10: 晴 | AF10: 晴 | AG10: 晴 | AH10: 晴 | AI10: 晴 | AJ10: 晴 | AK10: 晴 | AL10: 激しい雨 | AM10: 水浸し
A11: 300 | B11: 3 | C11: 0 | D11: 夜 | E11: 晴 | O11: 晴 | P11: 晴 | Q11: 晴 | R11: 晴 | S11: 晴 | T11: 晴 | U11: 晴 | V11: 晴 | W11: 晴 | Y11: 晴 | Z11: 晴 | AA11: 晴 | AB11: 晴 | AC11: 晴 | AD11: 晴 | AE11: 晴 | AF11: 晴 | AG11: 晴 | AH11: 晴 | AI11: 晴 | AJ11: 晴 | AK11: 晴 | AL11: 激しい雨 | AM11: 水浸し
A12: 320 | B12: 3 | C12: 20 | D12: 夜 | E12: 晴 | O12: 晴 | P12: 晴 | Q12: 晴 | R12: 晴 | S12: 晴 | T12: 晴 | U12: 晴 | V12: 晴 | W12: 晴 | Y12: 晴 | Z12: 晴 | AA12: 晴 | AB12: 晴 | AC12: 晴 | AD12: 晴 | AE12: 晴 | AF12: 晴 | AG12: 晴 | AH12: 晴 | AI12: 晴 | AJ12: 晴 | AK12: 晴 | AL12: 激しい雨 | AM12: 水浸し
A13: 340 | B13: 3 | C13: 40 | D13: 夜 | E13: 晴 | O13: 晴 | P13: 晴 | Q13: 晴 | R13: 晴 | S13: 晴 | T13: 晴 | U13: 晴 | V13: 晴 | W13: 晴 | Y13: 晴 | Z13: 晴 | AA13: 晴 | AB13: 晴 | AC13: 晴 | AD13: 晴 | AE13: 晴 | AF13: 晴 | AG13: 晴 | AH13: 晴 | AI13: 晴 | AJ13: 晴 | AK13: 晴 | AL13: 激しい雨 | AM13: 水浸し
A14: 400 | B14: 4 | C14: 0 | D14: 夜 | E14: 晴 | O14: 晴 | P14: 晴 | Q14: 晴 | R14: 晴 | S14: 晴 | T14: 晴 | U14: 晴 | V14: 晴 | W14: 晴 | Y14: 晴 | Z14: 晴 | AA14: 晴 | AB14: 晴 | AC14: 晴 | AD14: 晴 | AE14: 晴 | AF14: 晴 | AG14: 晴 | AH14: 晴 | AI14: 晴 | AJ14: 晴 | AK14: 晴 | AL14: 激しい雨 | AM14: 水浸し
A15: 420 | B15: 4 | C15: 20 | D15: 日出前 | E15: 晴 | O15: 晴 | P15: 晴 | Q15: 晴 | R15: 晴 | S15: 晴 | T15: 晴 | U15: 晴 | V15: 晴 | W15: 晴 | Y15: 晴 | Z15: 晴 | AA15: 晴 | AB15: 晴 | AC15: 晴 | AD15: 晴 | AE15: 晴 | AF15: 晴 | AG15: 晴 | AH15: 晴 | AI15: 晴 | AJ15: 晴 | AK15: 晴 | AL15: 激しい雨 | AM15: 水浸し
A16: 440 | B16: 4 | C16: 40 | D16: 日出前 | E16: 晴 | O16: 晴 | P16: 晴 | Q16: 晴 | R16: 晴 | S16: 晴 | T16: 晴 | U16: 晴 | V16: 晴 | W16: 晴 | Y16: 晴 | Z16: 晴 | AA16: 晴 | AB16: 晴 | AC16: 晴 | AD16: 晴 | AE16: 晴 | AF16: 晴 | AG16: 晴 | AH16: 晴 | AI16: 晴 | AJ16: 晴 | AK16: 晴 | AL16: 豪雨の後 | AM16: 水浸し
A17: 500 | B17: 5 | C17: 0 | D17: 昼 | E17: 晴 | O17: 晴 | P17: 晴 | Q17: 晴 | R17: 晴 | S17: 晴 | T17: 晴 | U17: 晴 | V17: 晴 | W17: 晴 | Y17: 晴 | Z17: 晴 | AA17: 晴 | AB17: 晴 | AC17: 晴 | AD17: 晴 | AE17: 晴 | AF17: 晴 | AG17: 晴 | AH17: 晴 | AI17: 晴 | AJ17: 晴 | AK17: 晴 | AL17: 豪雨の後 | AM17: 水浸し
A18: 520 | B18: 5 | C18: 20 | D18: 昼 | E18: 晴 | O18: 晴 | P18: 晴 | Q18: 晴 | R18: 晴 | S18: 晴 | T18: 晴 | U18: 晴 | V18: 晴 | W18: 晴 | Y18: 晴 | Z18: 晴 | AA18: 晴 | AB18: 晴 | AC18: 晴 | AD18: 晴 | AE18: 晴 | AF18: 晴 | AG18: 晴 | AH18: 晴 | AI18: 晴 | AJ18: 晴 | AK18: 晴 | AL18: 豪雨の後 | AM18: 水浸し
A19: 540 | B19: 5 | C19: 40 | D19: 昼 | E19: 晴 | O19: 晴 | P19: 晴 | Q19: 晴 | R19: 晴 | S19: 晴 | T19: 晴 | U19: 晴 | V19: 晴 | W19: 晴 | Y19: 晴 | Z19: 晴 | AA19: 晴 | AB19: 晴 | AC19: 晴 | AD19: 晴 | AE19: 晴 | AF19: 晴 | AG19: 晴 | AH19: 晴 | AI19: 晴 | AJ19: 晴 | AK19: 晴 | AL19: 豪雨の後 | AM19: 水浸し
A20: 600 | B20: 6 | C20: 0 | D20: 昼 | E20: 晴 | O20: 晴 | P20: 晴 | Q20: 晴 | R20: 晴 | S20: 晴 | T20: 晴 | U20: 晴 | V20: 晴 | W20: 晴 | Y20: 晴 | Z20: 晴 | AA20: 晴 | AB20: 晴 | AC20: 晴 | AD20: 晴 | AE20: 晴 | AF20: 晴 | AG20: 晴 | AH20: 晴 | AI20: 晴 | AJ20: 晴 | AK20: 晴 | AL20: 豪雨の後 | AM20: 水浸し
A21: 620 | B21: 6 | C21: 20 | D21: 昼 | E21: 晴 | O21: 晴 | P21: 晴 | Q21: 晴 | R21: 晴 | S21: 晴 | T21: 晴 | U21: 晴 | V21: 晴 | W21: 晴 | Y21: 晴 | Z21: 晴 | AA21: 晴 | AB21: 晴 | AC21: 晴 | AD21: 晴 | AE21: 晴 | AF21: 晴 | AG21: 晴 | AH21: 晴 | AI21: 晴 | AJ21: 晴 | AK21: 晴 | AL21: 豪雨の後 | AM21: 水浸し
A22: 640 | B22: 6 | C22: 40 | D22: 昼 | E22: 晴 | O22: 晴 | P22: 晴 | Q22: 晴 | R22: 晴 | S22: 晴 | T22: 晴 | U22: 晴 | V22: 晴 | W22: 晴 | Y22: 晴 | Z22: 晴 | AA22: 晴 | AB22: 晴 | AC22: 晴 | AD22: 晴 | AE22: 晴 | AF22: 晴 | AG22: 晴 | AH22: 晴 | AI22: 晴 | AJ22: 晴 | AK22: 晴 | AL22: 豪雨の後 | AM22: 水浸し
A23: 700 | B23: 7 | C23: 0 | D23: 昼 | E23: 晴 | O23: 晴 | P23: 晴 | Q23: 晴 | R23: 晴 | S23: 晴 | T23: 晴 | U23: 晴 | V23: 晴 | W23: 晴 | Y23: 濃淡霧 | Z23: 晴 | AA23: 晴 | AB23: 晴 | AC23: 晴 | AD23: 晴 | AE23: 晴 | AF23: 晴 | AG23: 晴 | AH23: 晴 | AI23: 晴 | AJ23: 晴 | AK23: 可変9 | AL23: 豪雨の後 | AM23: 水浸し
A24: 720 | B24: 7 | C24: 20 | D24: 昼 | E24: 晴 | O24: 晴 | P24: 晴 | Q24: 晴 | R24: 晴 | S24: 晴 | T24: 晴 | U24: 晴 | V24: 晴 | W24: 晴 | Y24: 濃淡霧 | Z24: 晴 | AA24: 晴 | AB24: 晴 | AC24: 晴 | AD24: 晴 | AE24: 晴 | AF24: 晴 | AG24: 晴 | AH24: 晴 | AI24: 晴 | AJ24: 晴 | AK24: 可変10 | AL24: 豪雨の後 | AM24: 水浸し
A25: 740 | B25: 7 | C25: 40 | D25: 昼 | E25: 晴 | O25: 晴 | P25: 晴 | Q25: 晴 | R25: 晴 | S25: 晴 | T25: 晴 | U25: 晴 | V25: 晴 | W25: 晴 | Y25: 濃淡霧 | Z25: 可変5 | AA25: 晴 | AB25: 晴 | AC25: 晴 | AD25: 晴 | AE25: 晴 | AF25: 晴 | AG25: 晴 | AH25: 晴 | AI25: 晴 | AJ25: 晴 | AK25: 可変11 | AL25: 豪雨の後 | AM25: 水浸し
A26: 800 | B26: 8 | C26: 0 | D26: 昼 | E26: 晴 | O26: 晴 | P26: 晴 | Q26: 晴 | R26: 晴 | S26: 晴 | T26: 晴 | U26: 晴 | V26: 晴 | W26: 朝霧 | Y26: 濃淡霧 | Z26: 可変5 | AA26: 晴 | AB26: 晴 | AC26: 晴 | AD26: 晴 | AE26: 晴 | AF26: 晴 | AG26: 晴 | AH26: 晴 | AI26: 晴 | AJ26: 晴 | AK26: 晴 | AL26: 豪雨の後 | AM26: 水浸し
A27: 820 | B27: 8 | C27: 20 | D27: 昼 | E27: 晴 | O27: 晴 | P27: 晴 | Q27: 晴 | R27: 晴 | S27: 晴 | T27: 晴 | U27: 晴 | V27: 晴 | W27: 朝霧 | Y27: 濃淡霧 | Z27: 可変5 | AA27: 晴 | AB27: 晴 | AC27: 晴 | AD27: 晴 | AE27: 晴 | AF27: 晴 | AG27: 晴 | AH27: 晴 | AI27: 晴 | AJ27: 晴 | AK27: 晴 | AL27: 豪雨の後 | AM27: 水浸し
A28: 840 | B28: 8 | C28: 40 | D28: 昼 | E28: 晴 | O28: 晴 | P28: 晴 | Q28: 晴 | R28: 晴 | S28: 晴 | T28: 晴 | U28: 晴 | V28: 晴 | W28: 朝霧 | Y28: 濃淡霧 | Z28: 可変5 | AA28: 晴 | AB28: 可変1 | AC28: 晴 | AD28: 晴 | AE28: 晴 | AF28: 晴 | AG28: 晴 | AH28: 晴 | AI28: 晴 | AJ28: 晴 | AK28: 晴 | AL28: 豪雨の後 | AM28: 水浸し
A29: 900 | B29: 9 | C29: 0 | D29: 昼 | E29: 晴 | O29: 晴 | P29: 晴 | Q29: 晴 | R29: 晴 | S29: 晴 | T29: 可変7 | U29: 晴 | V29: 晴 | W29: 朝霧 | Y29: 濃淡霧 | Z29: 可変5 | AA29: 晴 | AB29: 可変1 | AC29: 晴 | AD29: 晴 | AE29: 晴 | AF29: 晴 | AG29: 晴 | AH29: 晴 | AI29: 晴 | AJ29: 晴 | AK29: 晴 | AL29: 豪雨の後 | AM29: 水浸し
A30: 920 | B30: 9 | C30: 20 | D30: 昼 | E30: 晴 | O30: 晴 | P30: 晴 | Q30: 晴 | R30: 晴 | S30: 晴 | T30: 可変7 | U30: 晴 | V30: 晴 | W30: 朝霧 | Y30: 濃淡霧 | Z30: 可変5 | AA30: 晴 | AB30: 可変1 | AC30: 晴 | AD30: 晴 | AE30: 晴 | AF30: 晴 | AG30: 晴 | AH30: 晴 | AI30: 晴 | AJ30: 晴 | AK30: 晴 | AL30: 豪雨の後 | AM30: 水浸し
A31: 940 | B31: 9 | C31: 40 | D31: 昼 | E31: 晴 | O31: 晴 | P31: 晴 | Q31: 晴 | R31: 晴 | S31: 晴 | T31: 可変7 | U31: 晴 | V31: 晴 | W31: 朝霧 | Y31: 濃淡霧 | Z31: 可変5 | AA31: 晴 | AB31: 可変1 | AC31: 晴 | AD31: 晴 | AE31: 晴 | AF31: 晴 | AG31: 晴 | AH31: 晴 | AI31: 晴 | AJ31: 晴 | AK31: 晴 | AL31: 豪雨の後 | AM31: 水浸し
A32: 1000 | B32: 10 | C32: 0 | D32: 昼 | E32: 晴 | O32: 晴 | P32: 晴 | Q32: 晴 | R32: 晴 | S32: 晴 | T32: 可変7 | U32: 晴 | V32: 晴 | W32: 晴 | Y32: 晴 | Z32: 可変5 | AA32: 晴 | AB32: 可変2 | AC32: 晴 | AD32: 晴 | AE32: 晴 | AF32: 晴 | AG32: 晴 | AH32: 晴 | AI32: 晴 | AJ32: 晴 | AK32: 晴 | AL32: 豪雨の後 | AM32: 水浸し
A33: 1020 | B33: 10 | C33: 20 | D33: 昼 | E33: 晴 | O33: 晴 | P33: 晴 | Q33: 晴 | R33: 晴 | S33: 晴 | T33: 可変7 | U33: 晴 | V33: 晴 | W33: 晴 | Y33: 晴 | Z33: 可変5 | AA33: 晴 | AB33: 可変2 | AC33: 晴 | AD33: 晴 | AE33: 晴 | AF33: 晴 | AG33: 晴 | AH33: 晴 | AI33: 晴 | AJ33: 晴 | AK33: 晴 | AL33: 豪雨の後 | AM33: 水浸し
A34: 1040 | B34: 10 | C34: 40 | D34: 昼 | E34: 晴 | O34: 晴 | P34: 晴 | Q34: 晴 | R34: 晴 | S34: 晴 | T34: 可変7 | U34: 晴 | V34: 晴 | W34: 晴 | Y34: 晴 | Z34: 可変5 | AA34: 晴 | AB34: 可変2 | AC34: 晴 | AD34: 晴 | AE34: 晴 | AF34: 晴 | AG34: 晴 | AH34: 晴 | AI34: 晴 | AJ34: 晴 | AK34: 晴 | AL34: 豪雨の後 | AM34: 水浸し
A35: 1100 | B35: 11 | C35: 0 | D35: 昼 | E35: 晴 | O35: 晴 | P35: 晴 | Q35: 晴 | R35: 晴 | S35: 晴 | T35: 可変7 | U35: 晴 | V35: 晴 | W35: 晴 | Y35: 晴 | Z35: 可変5 | AA35: 晴 | AB35: 可変2 | AC35: 晴 | AD35: 晴 | AE35: 晴 | AF35: 晴 | AG35: 晴 | AH35: 晴 | AI35: 晴 | AJ35: 晴 | AK35: 晴 | AL35: 豪雨の後 | AM35: 水浸し
A36: 1120 | B36: 11 | C36: 20 | D36: 昼 | E36: 晴 | O36: 晴 | P36: 晴 | Q36: 晴 | R36: 晴 | S36: 晴 | T36: 可変8 | U36: 晴 | V36: 晴 | W36: 晴 | Y36: 晴 | Z36: 可変5 | AA36: 晴 | AB36: 可変2 | AC36: 晴 | AD36: 晴 | AE36: 晴 | AF36: 晴 | AG36: 晴 | AH36: 晴 | AI36: 晴 | AJ36: 晴 | AK36: 晴 | AL36: 豪雨の後 | AM36: 水浸し
A37: 1140 | B37: 11 | C37: 40 | D37: 昼 | E37: 晴 | O37: 晴 | P37: 晴 | Q37: 晴 | R37: 晴 | S37: 晴 | T37: 可変8 | U37: 晴 | V37: 晴 | W37: 晴 | Y37: 晴 | Z37: 可変5 | AA37: 晴 | AB37: 可変2 | AC37: 晴 | AD37: 晴 | AE37: 晴 | AF37: 晴 | AG37: 晴 | AH37: 晴 | AI37: 晴 | AJ37: 晴 | AK37: 晴 | AL37: 豪雨の後 | AM37: 水浸し
A38: 1200 | B38: 12 | C38: 0 | D38: 昼 | E38: 晴 | O38: 晴 | P38: 晴 | Q38: 晴 | R38: 晴 | S38: 晴 | T38: 可変8 | U38: 晴 | V38: 晴 | W38: 晴 | Y38: 晴 | Z38: 可変5 | AA38: 晴 | AB38: 可変3 | AC38: 晴 | AD38: 晴 | AE38: 晴 | AF38: 晴 | AG38: 晴 | AH38: 晴 | AI38: 晴 | AJ38: 晴 | AK38: 晴 | AL38: 豪雨の後 | AM38: 水浸し
A39: 1220 | B39: 12 | C39: 20 | D39: 昼 | E39: 晴 | O39: 晴 | P39: 晴 | Q39: 晴 | R39: 晴 | S39: 晴 | T39: 可変8 | U39: 晴 | V39: 晴 | W39: 晴 | Y39: 晴 | Z39: 可変5 | AA39: 晴 | AB39: 可変3 | AC39: 晴 | AD39: 晴 | AE39: 晴 | AF39: 晴 | AG39: 晴 | AH39: 晴 | AI39: 晴 | AJ39: 晴 | AK39: 晴 | AL39: 豪雨の後 | AM39: 水浸し
A40: 1240 | B40: 12 | C40: 40 | D40: 昼 | E40: 晴 | O40: 晴 | P40: 晴 | Q40: 晴 | R40: 晴 | S40: 晴 | T40: 可変8 | U40: 晴 | V40: 晴 | W40: 晴 | Y40: 晴 | Z40: 可変5 | AA40: 晴 | AB40: 可変3 | AC40: 晴 | AD40: 晴 | AE40: 晴 | AF40: 晴 | AG40: 晴 | AH40: 晴 | AI40: 晴 | AJ40: 晴 | AK40: 晴 | AL40: 豪雨の後 | AM40: 水浸し
A41: 1300 | B41: 13 | C41: 0 | D41: 昼 | E41: 晴 | O41: 晴 | P41: 晴 | Q41: 晴 | R41: 晴 | S41: 晴 | T41: 可変8 | U41: 晴 | V41: 晴 | W41: 晴 | Y41: 晴 | Z41: 可変5 | AA41: 晴 | AB41: 可変3 | AC41: 晴 | AD41: 晴 | AE41: 晴 | AF41: 晴 | AG41: 晴 | AH41: 晴 | AI41: 晴 | AJ41: 晴 | AK41: 晴 | AL41: 豪雨の後 | AM41: 水浸し
A42: 1320 | B42: 13 | C42: 20 | D42: 昼 | E42: 晴 | O42: 晴 | P42: 晴 | Q42: 晴 | R42: 晴 | S42: 晴 | T42: 可変8 | U42: 晴 | V42: 晴 | W42: 晴 | Y42: 晴 | Z42: 可変5 | AA42: 晴 | AB42: 可変3 | AC42: 晴 | AD42: 晴 | AE42: 晴 | AF42: 晴 | AG42: 晴 | AH42: 晴 | AI42: 晴 | AJ42: 晴 | AK42: 晴 | AL42: 豪雨の後 | AM42: 水浸し
A43: 1340 | B43: 13 | C43: 40 | D43: 昼 | E43: 晴 | O43: 晴 | P43: 晴 | Q43: 晴 | R43: 晴 | S43: 晴 | T43: 可変8 | U43: 晴 | V43: 晴 | W43: 晴 | Y43: 晴 | Z43: 可変5 | AA43: 晴 | AB43: 可変3 | AC43: 晴 | AD43: 晴 | AE43: 晴 | AF43: 晴 | AG43: 晴 | AH43: 晴 | AI43: 晴 | AJ43: 晴 | AK43: 晴 | AL43: 豪雨の後 | AM43: 水浸し
A44: 1400 | B44: 14 | C44: 0 | D44: 昼 | E44: 晴 | O44: 晴 | P44: 晴 | Q44: 晴 | R44: 晴 | S44: 晴 | T44: 可変8 | U44: 晴 | V44: 晴 | W44: 晴 | Y44: 晴 | Z44: 可変5 | AA44: 晴 | AB44: 可変4 | AC44: 晴 | AD44: 晴 | AE44: 晴 | AF44: 晴 | AG44: 晴 | AH44: 晴 | AI44: 晴 | AJ44: 晴 | AK44: 晴 | AL44: 豪雨の後 | AM44: 水浸し
A45: 1420 | B45: 14 | C45: 20 | D45: 昼 | E45: 晴 | O45: 晴 | P45: 晴 | Q45: 晴 | R45: 晴 | S45: 晴 | T45: 可変8 | U45: 晴 | V45: 晴 | W45: 晴 | Y45: 晴 | Z45: 可変5 | AA45: 晴 | AB45: 可変4 | AC45: 晴 | AD45: 晴 | AE45: 晴 | AF45: 晴 | AG45: 晴 | AH45: 晴 | AI45: 晴 | AJ45: 晴 | AK45: 晴 | AL45: 豪雨の後 | AM45: 水浸し
A46: 1440 | B46: 14 | C46: 40 | D46: 昼 | E46: 晴 | O46: 晴 | P46: 晴 | Q46: 晴 | R46: 晴 | S46: 晴 | T46: 可変8 | U46: 晴 | V46: 晴 | W46: 晴 | Y46: 晴 | Z46: 可変5 | AA46: 晴 | AB46: 可変4 | AC46: 晴 | AD46: 晴 | AE46: 晴 | AF46: 晴 | AG46: 晴 | AH46: 晴 | AI46: 晴 | AJ46: 晴 | AK46: 晴 | AL46: 豪雨の後 | AM46: 水浸し
A47: 1500 | B47: 15 | C47: 0 | D47: 昼 | E47: 晴 | O47: 晴 | P47: 晴 | Q47: 晴 | R47: 晴 | S47: 晴 | T47: 可変8 | U47: 晴 | V47: 晴 | W47: 晴 | Y47: 晴 | Z47: 可変5 | AA47: 晴 | AB47: 可変4 | AC47: 可変6 | AD47: 晴 | AE47: 晴 | AF47: 晴 | AG47: 晴 | AH47: 晴 | AI47: 晴 | AJ47: 晴 | AK47: 晴 | AL47: 豪雨の後 | AM47: 水浸し
A48: 1520 | B48: 15 | C48: 20 | D48: 昼 | E48: 晴 | O48: 晴 | P48: 晴 | Q48: 晴 | R48: 晴 | S48: 晴 | T48: 可変8 | U48: 晴 | V48: 晴 | W48: 晴 | Y48: 晴 | Z48: 可変5 | AA48: 晴 | AB48: 可変4 | AC48: 可変6 | AD48: 晴 | AE48: 晴 | AF48: 晴 | AG48: 晴 | AH48: 晴 | AI48: 晴 | AJ48: 晴 | AK48: 晴 | AL48: 豪雨の後 | AM48: 水浸し
A49: 1540 | B49: 15 | C49: 40 | D49: 昼 | E49: 晴 | O49: 晴 | P49: 晴 | Q49: 晴 | R49: 晴 | S49: 晴 | T49: 可変8 | U49: 晴 | V49: 晴 | W49: 晴 | Y49: 晴 | Z49: 可変5 | AA49: 晴 | AB49: 晴 | AC49: 可変6 | AD49: 晴 | AE49: 晴 | AF49: 晴 | AG49: 晴 | AH49: 晴 | AI49: 晴 | AJ49: 晴 | AK49: 晴 | AL49: 豪雨の後 | AM49: 水浸し
A50: 1600 | B50: 16 | C50: 0 | D50: 昼 | E50: 晴 | O50: 晴 | P50: 晴 | Q50: 晴 | R50: 晴 | S50: 晴 | T50: 晴 | U50: 晴 | V50: 晴 | W50: 晴 | Y50: 晴 | Z50: 可変5 | AA50: 晴 | AB50: 晴 | AC50: 可変6 | AD50: 晴 | AE50: 晴 | AF50: 晴 | AG50: 晴 | AH50: 晴 | AI50: 晴 | AJ50: 晴 | AK50: 晴 | AL50: 豪雨の後 | AM50: 水浸し
A51: 1620 | B51: 16 | C51: 20 | D51: 昼 | E51: 晴 | O51: 晴 | P51: 晴 | Q51: 晴 | R51: 晴 | S51: 晴 | T51: 晴 | U51: 晴 | V51: 晴 | W51: 晴 | Y51: 晴 | Z51: 可変5 | AA51: 晴 | AB51: 晴 | AC51: 可変6 | AD51: 晴 | AE51: 晴 | AF51: 晴 | AG51: 晴 | AH51: 晴 | AI51: 晴 | AJ51: 晴 | AK51: 晴 | AL51: 豪雨の後 | AM51: 水浸し
A52: 1640 | B52: 16 | C52: 40 | D52: 昼 | E52: 晴 | O52: 晴 | P52: 晴 | Q52: 晴 | R52: 晴 | S52: 晴 | T52: 晴 | U52: 晴 | V52: 晴 | W52: 晴 | Y52: 晴 | Z52: 可変5 | AA52: 晴 | AB52: 晴 | AC52: 可変6 | AD52: 晴 | AE52: 晴 | AF52: 晴 | AG52: 晴 | AH52: 晴 | AI52: 晴 | AJ52: 晴 | AK52: 晴 | AL52: 豪雨の後 | AM52: 水浸し
A53: 1700 | B53: 17 | C53: 0 | D53: 昼 | E53: 晴 | O53: 晴 | P53: 晴 | Q53: 晴 | R53: 晴 | S53: 晴 | T53: 晴 | U53: 晴 | V53: 晴 | W53: 晴 | Y53: 晴 | Z53: 可変5 | AA53: 晴 | AB53: 晴 | AC53: 可変6 | AD53: 晴 | AE53: 晴 | AF53: 晴 | AG53: 晴 | AH53: 晴 | AI53: 晴 | AJ53: 晴 | AK53: 晴 | AL53: 豪雨の後 | AM53: 水浸し
A54: 1720 | B54: 17 | C54: 20 | D54: 昼 | E54: 晴 | O54: 晴 | P54: 晴 | Q54: 晴 | R54: 晴 | S54: 晴 | T54: 晴 | U54: 晴 | V54: 晴 | W54: 晴 | Y54: 晴 | Z54: 可変5 | AA54: 晴 | AB54: 晴 | AC54: 可変6 | AD54: 晴 | AE54: 晴 | AF54: 晴 | AG54: 晴 | AH54: 晴 | AI54: 晴 | AJ54: 晴 | AK54: 晴 | AL54: 豪雨の後 | AM54: 水浸し
A55: 1740 | B55: 17 | C55: 40 | D55: 昼 | E55: 晴 | O55: 晴 | P55: 晴 | Q55: 晴 | R55: 晴 | S55: 晴 | T55: 晴 | U55: 晴 | V55: 晴 | W55: 晴 | Y55: 晴 | Z55: 可変5 | AA55: 晴 | AB55: 晴 | AC55: 可変6 | AD55: 晴 | AE55: 晴 | AF55: 晴 | AG55: 晴 | AH55: 晴 | AI55: 晴 | AJ55: 晴 | AK55: 晴 | AL55: 豪雨の後 | AM55: 水浸し
A56: 1800 | B56: 18 | C56: 0 | D56: 昼 | E56: 晴 | O56: 晴 | P56: 晴 | Q56: 晴 | R56: 晴 | S56: 晴 | T56: 晴 | U56: 晴 | V56: 晴 | W56: 晴 | Y56: 晴 | Z56: 可変5 | AA56: 晴 | AB56: 晴 | AC56: 可変6 | AD56: 晴 | AE56: 晴 | AF56: 晴 | AG56: 晴 | AH56: 晴 | AI56: 晴 | AJ56: 晴 | AK56: 晴 | AL56: 豪雨の後 | AM56: 水浸し
A57: 1820 | B57: 18 | C57: 20 | D57: 昼 | E57: 晴 | O57: 晴 | P57: 晴 | Q57: 晴 | R57: 晴 | S57: 晴 | T57: 晴 | U57: 晴 | V57: 晴 | W57: 晴 | Y57: 晴 | Z57: 可変5 | AA57: 晴 | AB57: 晴 | AC57: 可変6 | AD57: 晴 | AE57: 晴 | AF57: 晴 | AG57: 晴 | AH57: 晴 | AI57: 晴 | AJ57: 晴 | AK57: 晴 | AL57: 豪雨の後 | AM57: 水浸し
A58: 1840 | B58: 18 | C58: 40 | D58: 昼 | E58: 晴 | O58: 晴 | P58: 晴 | Q58: 晴 | R58: 晴 | S58: 晴 | T58: 晴 | U58: 晴 | V58: 晴 | W58: 晴 | Y58: 晴 | Z58: 可変5 | AA58: 晴 | AB58: 晴 | AC58: 可変6 | AD58: 晴 | AE58: 晴 | AF58: 晴 | AG58: 晴 | AH58: 晴 | AI58: 晴 | AJ58: 晴 | AK58: 晴 | AL58: 豪雨の後 | AM58: 水浸し
A59: 1900 | B59: 19 | C59: 0 | D59: 日入後 | E59: 晴 | O59: 晴 | P59: 晴 | Q59: 晴 | R59: 晴 | S59: 晴 | T59: 晴 | U59: 晴 | V59: 晴 | W59: 晴 | Y59: 晴 | Z59: 可変5 | AA59: 晴 | AB59: 晴 | AC59: 可変6 | AD59: 晴 | AE59: 晴 | AF59: 晴 | AG59: 晴 | AH59: 晴 | AI59: 晴 | AJ59: 晴 | AK59: 晴 | AL59: 豪雨の後 | AM59: 水浸し
A60: 1920 | B60: 19 | C60: 20 | D60: 日入後 | E60: 晴 | O60: 晴 | P60: 晴 | Q60: 晴 | R60: 晴 | S60: 晴 | T60: 晴 | U60: 晴 | V60: 晴 | W60: 晴 | Y60: 晴 | Z60: 可変5 | AA60: 晴 | AB60: 晴 | AC60: 可変6 | AD60: 晴 | AE60: 晴 | AF60: 晴 | AG60: 晴 | AH60: 晴 | AI60: 晴 | AJ60: 晴 | AK60: 晴 | AL60: 豪雨の後 | AM60: 水浸し
A61: 1940 | B61: 19 | C61: 40 | D61: 夜 | E61: 晴 | O61: 晴 | P61: 晴 | Q61: 晴 | R61: 晴 | S61: 晴 | T61: 晴 | U61: 晴 | V61: 晴 | W61: 晴 | Y61: 晴 | Z61: 可変5 | AA61: 晴 | AB61: 晴 | AC61: 可変6 | AD61: 晴 | AE61: 晴 | AF61: 晴 | AG61: 晴 | AH61: 晴 | AI61: 晴 | AJ61: 晴 | AK61: 激しい雨 | AL61: 豪雨の後 | AM61: 水浸し
A62: 2000 | B62: 20 | C62: 0 | D62: 夜 | E62: 晴 | O62: 晴 | P62: 晴 | Q62: 晴 | R62: 晴 | S62: 晴 | T62: 晴 | U62: 晴 | V62: 晴 | W62: 晴 | Y62: 晴 | Z62: 可変5 | AA62: 晴 | AB62: 晴 | AC62: 可変6 | AD62: 晴 | AE62: 晴 | AF62: 晴 | AG62: 晴 | AH62: 晴 | AI62: 晴 | AJ62: 晴 | AK62: 激しい雨 | AL62: 豪雨の後 | AM62: 水浸し
A63: 2020 | B63: 20 | C63: 20 | D63: 夜 | E63: 晴 | O63: 晴 | P63: 晴 | Q63: 晴 | R63: 晴 | S63: 晴 | T63: 晴 | U63: 晴 | V63: 晴 | W63: 晴 | Y63: 晴 | Z63: 晴 | AA63: 晴 | AB63: 晴 | AC63: 可変6 | AD63: 晴 | AE63: 晴 | AF63: 晴 | AG63: 晴 | AH63: 晴 | AI63: 晴 | AJ63: 晴 | AK63: 激しい雨 | AL63: 豪雨の後 | AM63: 水浸し
A64: 2040 | B64: 20 | C64: 40 | D64: 夜 | E64: 晴 | O64: 晴 | P64: 晴 | Q64: 晴 | R64: 晴 | S64: 晴 | T64: 晴 | U64: 晴 | V64: 晴 | W64: 晴 | Y64: 晴 | Z64: 晴 | AA64: 晴 | AB64: 晴 | AC64: 可変6 | AD64: 晴 | AE64: 晴 | AF64: 晴 | AG64: 晴 | AH64: 晴 | AI64: 晴 | AJ64: 晴 | AK64: 激しい雨 | AL64: 豪雨の後 | AM64: 水浸し
A65: 2100 | B65: 21 | C65: 0 | D65: 夜 | E65: 晴 | O65: 晴 | P65: 晴 | Q65: 晴 | R65: 晴 | S65: 晴 | T65: 晴 | U65: 晴 | V65: 晴 | W65: 晴 | Y65: 晴 | Z65: 晴 | AA65: 晴 | AB65: 晴 | AC65: 可変6 | AD65: 晴 | AE65: 晴 | AF65: 晴 | AG65: 晴 | AH65: 晴 | AI65: 晴 | AJ65: 晴 | AK65: 激しい雨 | AL65: 豪雨の後 | AM65: 水浸し
A66: 2120 | B66: 21 | C66: 20 | D66: 夜 | E66: 晴 | O66: 晴 | P66: 晴 | Q66: 晴 | R66: 晴 | S66: 晴 | T66: 晴 | U66: 晴 | V66: 晴 | W66: 晴 | Y66: 晴 | Z66: 晴 | AA66: 晴 | AB66: 晴 | AC66: 可変6 | AD66: 晴 | AE66: 晴 | AF66: 晴 | AG66: 晴 | AH66: 晴 | AI66: 晴 | AJ66: 晴 | AK66: 激しい雨 | AL66: 豪雨の後 | AM66: 水浸し
A67: =B67*100+C67 -> 2140 | B67: 21 | C67: 40 | D67: 夜 | E67: 晴 | O67: 晴 | P67: 晴 | Q67: 晴 | R67: 晴 | S67: 晴 | T67: 晴 | U67: 晴 | V67: 晴 | W67: 晴 | Y67: 晴 | Z67: 晴 | AA67: 晴 | AB67: 晴 | AC67: 可変6 | AD67: 晴 | AE67: 晴 | AF67: 晴 | AG67: 晴 | AH67: 晴 | AI67: 晴 | AJ67: 晴 | AK67: 激しい雨 | AL67: 豪雨の後 | AM67: 水浸し
A68: 2200 | B68: 22 | C68: 0 | D68: 夜 | E68: 晴 | O68: 晴 | P68: 晴 | Q68: 晴 | R68: 晴 | S68: 晴 | T68: 晴 | U68: 晴 | V68: 晴 | W68: 晴 | Y68: 晴 | Z68: 晴 | AA68: 晴 | AB68: 晴 | AC68: 可変6 | AD68: 晴 | AE68: 晴 | AF68: 晴 | AG68: 晴 | AH68: 晴 | AI68: 晴 | AJ68: 晴 | AK68: 激しい雨 | AL68: 豪雨の後 | AM68: 水浸し
A69: 2220 | B69: 22 | C69: 20 | D69: 夜 | E69: 晴 | O69: 晴 | P69: 晴 | Q69: 晴 | R69: 晴 | S69: 晴 | T69: 晴 | U69: 晴 | V69: 晴 | W69: 晴 | Y69: 晴 | Z69: 晴 | AA69: 晴 | AB69: 晴 | AC69: 可変6 | AD69: 晴 | AE69: 晴 | AF69: 晴 | AG69: 晴 | AH69: 晴 | AI69: 晴 | AJ69: 晴 | AK69: 激しい雨 | AL69: 豪雨の後 | AM69: 水浸し
A70: 2240 | B70: 22 | C70: 40 | D70: 夜 | E70: 晴 | O70: 晴 | P70: 晴 | Q70: 晴 | R70: 晴 | S70: 晴 | T70: 晴 | U70: 晴 | V70: 晴 | W70: 晴 | Y70: 晴 | Z70: 晴 | AA70: 晴 | AB70: 晴 | AC70: 晴 | AD70: 晴 | AE70: 晴 | AF70: 晴 | AG70: 晴 | AH70: 晴 | AI70: 晴 | AJ70: 晴 | AK70: 激しい雨 | AL70: 豪雨の後 | AM70: 水浸し
A71: 2300 | B71: 23 | C71: 0 | D71: 夜 | E71: 晴 | O71: 晴 | P71: 晴 | Q71: 晴 | R71: 晴 | S71: 晴 | T71: 晴 | U71: 晴 | V71: 晴 | W71: 晴 | Y71: 晴 | Z71: 晴 | AA71: 晴 | AB71: 晴 | AC71: 晴 | AD71: 晴 | AE71: 晴 | AF71: 晴 | AG71: 晴 | AH71: 晴 | AI71: 晴 | AJ71: 晴 | AK71: 激しい雨 | AL71: 豪雨の後 | AM71: 水浸し
A72: 2320 | B72: 23 | C72: 20 | D72: 夜 | E72: 晴 | O72: 晴 | P72: 晴 | Q72: 晴 | R72: 晴 | S72: 晴 | T72: 晴 | U72: 晴 | V72: 晴 | W72: 晴 | Y72: 晴 | Z72: 晴 | AA72: 晴 | AB72: 晴 | AC72: 晴 | AD72: 晴 | AE72: 晴 | AF72: 晴 | AG72: 晴 | AH72: 晴 | AI72: 晴 | AJ72: 晴 | AK72: 激しい雨 | AL72: 豪雨の後 | AM72: 水浸し
A73: 2340 | B73: 23 | C73: 40 | D73: 夜 | E73: 晴 | O73: 晴 | P73: 晴 | Q73: 晴 | R73: 晴 | S73: 晴 | T73: 晴 | U73: 晴 | V73: 晴 | W73: 晴 | Y73: 晴 | Z73: 晴 | AA73: 晴 | AB73: 晴 | AC73: 晴 | AD73: 晴 | AE73: 晴 | AF73: 晴 | AG73: 晴 | AH73: 晴 | AI73: 晴 | AJ73: 晴 | AK73: 激しい雨 | AL73: 豪雨の後 | AM73: 水浸し
M75: 時 | N75: 分
M76: 0 | N76: 0 | O76: 夜 | P76: 夜 | Q76: 夜 | R76: 夜 | S76: 夜 | T76: 夜 | U76: 夜 | V76: 夜 | W76: 夜 | Y76: 夜 | Z76: 夜 | AA76: 夜 | AB76: 夜 | AC76: 夜 | AD76: 夜 | AE76: 夜 | AF76: 夜 | AG76: 夜 | AH76: 夜 | AI76: 夜 | AJ76: 夜 | AK76: 夜 | AL76: 夜 | AM76: 夜
M77: 0 | N77: 20 | O77: 夜 | P77: 夜 | Q77: 夜 | R77: 夜 | S77: 夜 | T77: 夜 | U77: 夜 | V77: 夜 | W77: 夜 | Y77: 夜 | Z77: 夜 | AA77: 夜 | AB77: 夜 | AC77: 夜 | AD77: 夜 | AE77: 夜 | AF77: 夜 | AG77: 夜 | AH77: 夜 | AI77: 夜 | AJ77: 夜 | AK77: 夜 | AL77: 夜 | AM77: 夜
M78: 0 | N78: 40 | O78: 夜 | P78: 夜 | Q78: 夜 | R78: 夜 | S78: 夜 | T78: 夜 | U78: 夜 | V78: 夜 | W78: 夜 | Y78: 夜 | Z78: 夜 | AA78: 夜 | AB78: 夜 | AC78: 夜 | AD78: 夜 | AE78: 夜 | AF78: 夜 | AG78: 夜 | AH78: 夜 | AI78: 夜 | AJ78: 夜 | AK78: 夜 | AL78: 夜 | AM78: 夜
M79: 1 | N79: 0 | O79: 夜 | P79: 夜 | Q79: 夜 | R79: 夜 | S79: 夜 | T79: 夜 | U79: 夜 | V79: 夜 | W79: 夜 | Y79: 夜 | Z79: 夜 | AA79: 夜 | AB79: 夜 | AC79: 夜 | AD79: 夜 | AE79: 夜 | AF79: 夜 | AG79: 夜 | AH79: 夜 | AI79: 夜 | AJ79: 夜 | AK79: 夜 | AL79: 夜 | AM79: 夜
M80: 1 | N80: 20 | O80: 夜 | P80: 夜 | Q80: 夜 | R80: 夜 | S80: 夜 | T80: 夜 | U80: 夜 | V80: 夜 | W80: 夜 | Y80: 夜 | Z80: 夜 | AA80: 夜 | AB80: 夜 | AC80: 夜 | AD80: 夜 | AE80: 夜 | AF80: 夜 | AG80: 夜 | AH80: 夜 | AI80: 夜 | AJ80: 夜 | AK80: 夜 | AL80: 夜 | AM80: 夜
M81: 1 | N81: 40 | O81: 夜 | P81: 夜 | Q81: 夜 | R81: 夜 | S81: 夜 | T81: 夜 | U81: 夜 | V81: 夜 | W81: 夜 | Y81: 夜 | Z81: 夜 | AA81: 夜 | AB81: 夜 | AC81: 夜 | AD81: 夜 | AE81: 夜 | AF81: 夜 | AG81: 夜 | AH81: 夜 | AI81: 夜 | AJ81: 夜 | AK81: 夜 | AL81: 夜 | AM81: 夜
M82: 2 | N82: 0 | O82: 夜 | P82: 夜 | Q82: 夜 | R82: 夜 | S82: 夜 | T82: 夜 | U82: 夜 | V82: 夜 | W82: 夜 | Y82: 夜 | Z82: 夜 | AA82: 夜 | AB82: 夜 | AC82: 夜 | AD82: 夜 | AE82: 夜 | AF82: 夜 | AG82: 夜 | AH82: 夜 | AI82: 夜 | AJ82: 夜 | AK82: 夜 | AL82: 夜 | AM82: 夜
M83: 2 | N83: 20 | O83: 夜 | P83: 夜 | Q83: 夜 | R83: 夜 | S83: 夜 | T83: 夜 | U83: 夜 | V83: 夜 | W83: 夜 | Y83: 夜 | Z83: 夜 | AA83: 夜 | AB83: 夜 | AC83: 夜 | AD83: 夜 | AE83: 夜 | AF83: 夜 | AG83: 夜 | AH83: 夜 | AI83: 夜 | AJ83: 夜 | AK83: 夜 | AL83: 夜 | AM83: 夜
M84: 2 | N84: 40 | O84: 夜 | P84: 夜 | Q84: 夜 | R84: 日出前 | S84: 夜 | T84: 夜 | U84: 夜 | V84: 夜 | W84: 夜 | Y84: 夜 | Z84: 夜 | AA84: 夜 | AB84: 夜 | AC84: 夜 | AD84: 夜 | AE84: 夜 | AF84: 夜 | AG84: 夜 | AH84: 夜 | AI84: 夜 | AJ84: 夜 | AK84: 夜 | AL84: 夜 | AM84: 夜
M85: 3 | N85: 0 | O85: 夜 | P85: 夜 | Q85: 夜 | R85: 日出前 | S85: 夜 | T85: 夜 | U85: 夜 | V85: 夜 | W85: 夜 | Y85: 夜 | Z85: 夜 | AA85: 夜 | AB85: 夜 | AC85: 日出前 | AD85: 日出前 | AE85: 日出前 | AF85: 日出前 | AG85: 夜 | AH85: 夜 | AI85: 夜 | AJ85: 夜 | AK85: 夜 | AL85: 夜 | AM85: 夜
M86: 3 | N86: 20 | O86: 夜 | P86: 夜 | Q86: 夜 | R86: 昼 | S86: 日出前 | T86: 夜 | U86: 夜 | V86: 夜 | W86: 夜 | Y86: 夜 | Z86: 夜 | AA86: 夜 | AB86: 夜 | AC86: 日出前 | AD86: 日出前 | AE86: 日出前 | AF86: 日出前 | AG86: 夜 | AH86: 夜 | AI86: 夜 | AJ86: 夜 | AK86: 夜 | AL86: 夜 | AM86: 夜
M87: 3 | N87: 40 | O87: 夜 | P87: 夜 | Q87: 夜 | R87: 昼 | S87: 日出前 | T87: 夜 | U87: 日出前 | V87: 夜 | W87: 夜 | Y87: 夜 | Z87: 夜 | AA87: 夜 | AB87: 夜 | AC87: 日出前 | AD87: 日出前 | AE87: 日出前 | AF87: 日出前 | AG87: 夜 | AH87: 夜 | AI87: 夜 | AJ87: 夜 | AK87: 夜 | AL87: 夜 | AM87: 夜
M88: 4 | N88: 0 | O88: 夜 | P88: 夜 | Q88: 夜 | R88: 昼 | S88: 日出前 | T88: 夜 | U88: 日出前 | V88: 夜 | W88: 夜 | Y88: 夜 | Z88: 夜 | AA88: 夜 | AB88: 夜 | AC88: 昼 | AD88: 昼 | AE88: 昼 | AF88: 昼 | AG88: 夜 | AH88: 日出前 | AI88: 夜 | AJ88: 夜 | AK88: 夜 | AL88: 夜 | AM88: 夜
M89: 4 | N89: 20 | O89: 夜 | P89: 日出前 | Q89: 夜 | R89: 昼 | S89: 昼 | T89: 夜 | U89: 昼 | V89: 夜 | W89: 夜 | Y89: 夜 | Z89: 夜 | AA89: 日出前 | AB89: 日出前 | AC89: 昼 | AD89: 昼 | AE89: 昼 | AF89: 昼 | AG89: 夜 | AH89: 日出前 | AI89: 夜 | AJ89: 夜 | AK89: 夜 | AL89: 夜 | AM89: 夜
M90: 4 | N90: 40 | O90: 夜 | P90: 日出前 | Q90: 夜 | R90: 昼 | S90: 昼 | T90: 夜 | U90: 昼 | V90: 夜 | W90: 夜 | Y90: 夜 | Z90: 夜 | AA90: 日出前 | AB90: 日出前 | AC90: 昼 | AD90: 昼 | AE90: 昼 | AF90: 昼 | AG90: 夜 | AH90: 昼 | AI90: 夜 | AJ90: 日出前 | AK90: 日出前 | AL90: 日出前 | AM90: 日出前
M91: 5 | N91: 0 | O91: 夜 | P91: 昼 | Q91: 夜 | R91: 昼 | S91: 昼 | T91: 夜 | U91: 昼 | V91: 夜 | W91: 夜 | Y91: 夜 | Z91: 夜 | AA91: 昼 | AB91: 昼 | AC91: 昼 | AD91: 昼 | AE91: 昼 | AF91: 昼 | AG91: 夜 | AH91: 昼 | AI91: 日出前 | AJ91: 日出前 | AK91: 日出前 | AL91: 日出前 | AM91: 日出前
M92: 5 | N92: 20 | O92: 夜 | P92: 昼 | Q92: 夜 | R92: 昼 | S92: 昼 | T92: 夜 | U92: 昼 | V92: 夜 | W92: 夜 | Y92: 夜 | Z92: 夜 | AA92: 昼 | AB92: 昼 | AC92: 昼 | AD92: 昼 | AE92: 昼 | AF92: 昼 | AG92: 夜 | AH92: 昼 | AI92: 日出前 | AJ92: 昼 | AK92: 昼 | AL92: 昼 | AM92: 昼
M93: 5 | N93: 40 | O93: 夜 | P93: 昼 | Q93: 夜 | R93: 昼 | S93: 昼 | T93: 夜 | U93: 昼 | V93: 夜 | W93: 夜 | Y93: 夜 | Z93: 夜 | AA93: 昼 | AB93: 昼 | AC93: 昼 | AD93: 昼 | AE93: 昼 | AF93: 昼 | AG93: 夜 | AH93: 昼 | AI93: 昼 | AJ93: 昼 | AK93: 昼 | AL93: 昼 | AM93: 昼
M94: 6 | N94: 0 | O94: 日出前 | P94: 昼 | Q94: 日出前 | R94: 昼 | S94: 昼 | T94: 日出前 | U94: 昼 | V94: 夜 | W94: 夜 | Y94: 日出前 | Z94: 夜 | AA94: 昼 | AB94: 昼 | AC94: 昼 | AD94: 昼 | AE94: 昼 | AF94: 昼 | AG94: 夜 | AH94: 昼 | AI94: 昼 | AJ94: 昼 | AK94: 昼 | AL94: 昼 | AM94: 昼
M95: 6 | N95: 20 | O95: 日出前 | P95: 昼 | Q95: 日出前 | R95: 昼 | S95: 昼 | T95: 日出前 | U95: 昼 | V95: 日出前 | W95: 夜 | Y95: 日出前 | Z95: 夜 | AA95: 昼 | AB95: 昼 | AC95: 昼 | AD95: 昼 | AE95: 昼 | AF95: 昼 | AG95: 夜 | AH95: 昼 | AI95: 昼 | AJ95: 昼 | AK95: 昼 | AL95: 昼 | AM95: 昼
M96: 6 | N96: 40 | O96: 日出前 | P96: 昼 | Q96: 昼 | R96: 昼 | S96: 昼 | T96: 日出前 | U96: 昼 | V96: 日出前 | W96: 夜 | Y96: 昼 | Z96: 日出前 | AA96: 昼 | AB96: 昼 | AC96: 昼 | AD96: 昼 | AE96: 昼 | AF96: 昼 | AG96: 夜 | AH96: 昼 | AI96: 昼 | AJ96: 昼 | AK96: 昼 | AL96: 昼 | AM96: 昼
M97: 7 | N97: 0 | O97: 昼 | P97: 昼 | Q97: 昼 | R97: 昼 | S97: 昼 | T97: 昼 | U97: 昼 | V97: 昼 | W97: 日出前 | Y97: 昼 | Z97: 日出前 | AA97: 昼 | AB97: 昼 | AC97: 昼 | AD97: 昼 | AE97: 昼 | AF97: 昼 | AG97: 夜 | AH97: 昼 | AI97: 昼 | AJ97: 昼 | AK97: 昼 | AL97: 昼 | AM97: 昼
M98: 7 | N98: 20 | O98: 昼 | P98: 昼 | Q98: 昼 | R98: 昼 | S98: 昼 | T98: 昼 | U98: 昼 | V98: 昼 | W98: 日出前 | Y98: 昼 | Z98: 昼 | AA98: 昼 | AB98: 昼 | AC98: 昼 | AD98: 昼 | AE98: 昼 | AF98: 昼 | AG98: 日出前 | AH98: 昼 | AI98: 昼 | AJ98: 昼 | AK98: 昼 | AL98: 昼 | AM98: 昼
M99: 7 | N99: 40 | O99: 昼 | P99: 昼 | Q99: 昼 | R99: 昼 | S99: 昼 | T99: 昼 | U99: 昼 | V99: 昼 | W99: 昼 | Y99: 昼 | Z99: 昼 | AA99: 昼 | AB99: 昼 | AC99: 昼 | AD99: 昼 | AE99: 昼 | AF99: 昼 | AG99: 日出前 | AH99: 昼 | AI99: 昼 | AJ99: 昼 | AK99: 昼 | AL99: 昼 | AM99: 昼
M100: 8 | N100: 0 | O100: 昼 | P100: 昼 | Q100: 昼 | R100: 昼 | S100: 昼 | T100: 昼 | U100: 昼 | V100: 昼 | W100: 昼 | Y100: 昼 | Z100: 昼 | AA100: 昼 | AB100: 昼 | AC100: 昼 | AD100: 昼 | AE100: 昼 | AF100: 昼 | AG100: 昼 | AH100: 昼 | AI100: 昼 | AJ100: 昼 | AK100: 昼 | AL100: 昼 | AM100: 昼
M101: 8 | N101: 20 | O101: 昼 | P101: 昼 | Q101: 昼 | R101: 昼 | S101: 昼 | T101: 昼 | U101: 昼 | V101: 昼 | W101: 昼 | Y101: 昼 | Z101: 昼 | AA101: 昼 | AB101: 昼 | AC101: 昼 | AD101: 昼 | AE101: 昼 | AF101: 昼 | AG101: 昼 | AH101: 昼 | AI101: 昼 | AJ101: 昼 | AK101: 昼 | AL101: 昼 | AM101: 昼
M102: 8 | N102: 40 | O102: 昼 | P102: 昼 | Q102: 昼 | R102: 昼 | S102: 昼 | T102: 昼 | U102: 昼 | V102: 昼 | W102: 昼 | Y102: 昼 | Z102: 昼 | AA102: 昼 | AB102: 昼 | AC102: 昼 | AD102: 昼 | AE102: 昼 | AF102: 昼 | AG102: 昼 | AH102: 昼 | AI102: 昼 | AJ102: 昼 | AK102: 昼 | AL102: 昼 | AM102: 昼
M103: 9 | N103: 0 | O103: 昼 | P103: 昼 | Q103: 昼 | R103: 昼 | S103: 昼 | T103: 昼 | U103: 昼 | V103: 昼 | W103: 昼 | Y103: 昼 | Z103: 昼 | AA103: 昼 | AB103: 昼 | AC103: 昼 | AD103: 昼 | AE103: 昼 | AF103: 昼 | AG103: 昼 | AH103: 昼 | AI103: 昼 | AJ103: 昼 | AK103: 昼 | AL103: 昼 | AM103: 昼
M104: 9 | N104: 20 | O104: 昼 | P104: 昼 | Q104: 昼 | R104: 昼 | S104: 昼 | T104: 昼 | U104: 昼 | V104: 昼 | W104: 昼 | Y104: 昼 | Z104: 昼 | AA104: 昼 | AB104: 昼 | AC104: 昼 | AD104: 昼 | AE104: 昼 | AF104: 昼 | AG104: 昼 | AH104: 昼 | AI104: 昼 | AJ104: 昼 | AK104: 昼 | AL104: 昼 | AM104: 昼
M105: 9 | N105: 40 | O105: 昼 | P105: 昼 | Q105: 昼 | R105: 昼 | S105: 昼 | T105: 昼 | U105: 昼 | V105: 昼 | W105: 昼 | Y105: 昼 | Z105: 昼 | AA105: 昼 | AB105: 昼 | AC105: 昼 | AD105: 昼 | AE105: 昼 | AF105: 昼 | AG105: 昼 | AH105: 昼 | AI105: 昼 | AJ105: 昼 | AK105: 昼 | AL105: 昼 | AM105: 昼
M106: 10 | N106: 0 | O106: 昼 | P106: 昼 | Q106: 昼 | R106: 昼 | S106: 昼 | T106: 昼 | U106: 昼 | V106: 昼 | W106: 昼 | Y106: 昼 | Z106: 昼 | AA106: 昼 | AB106: 昼 | AC106: 昼 | AD106: 昼 | AE106: 昼 | AF106: 昼 | AG106: 昼 | AH106: 昼 | AI106: 昼 | AJ106: 昼 | AK106: 昼 | AL106: 昼 | AM106: 昼
M107: 10 | N107: 20 | O107: 昼 | P107: 昼 | Q107: 昼 | R107: 昼 | S107: 昼 | T107: 昼 | U107: 昼 | V107: 昼 | W107: 昼 | Y107: 昼 | Z107: 昼 | AA107: 昼 | AB107: 昼 | AC107: 昼 | AD107: 昼 | AE107: 昼 | AF107: 昼 | AG107: 昼 | AH107: 昼 | AI107: 昼 | AJ107: 昼 | AK107: 昼 | AL107: 昼 | AM107: 昼
M108: 10 | N108: 40 | O108: 昼 | P108: 昼 | Q108: 昼 | R108: 昼 | S108: 昼 | T108: 昼 | U108: 昼 | V108: 昼 | W108: 昼 | Y108: 昼 | Z108: 昼 | AA108: 昼 | AB108: 昼 | AC108: 昼 | AD108: 昼 | AE108: 昼 | AF108: 昼 | AG108: 昼 | AH108: 昼 | AI108: 昼 | AJ108: 昼 | AK108: 昼 | AL108: 昼 | AM108: 昼
M109: 11 | N109: 0 | O109: 昼 | P109: 昼 | Q109: 昼 | R109: 昼 | S109: 昼 | T109: 昼 | U109: 昼 | V109: 昼 | W109: 昼 | Y109: 昼 | Z109: 昼 | AA109: 昼 | AB109: 昼 | AC109: 昼 | AD109: 昼 | AE109: 昼 | AF109: 昼 | AG109: 昼 | AH109: 昼 | AI109: 昼 | AJ109: 昼 | AK109: 昼 | AL109: 昼 | AM109: 昼
M110: 11 | N110: 20 | O110: 昼 | P110: 昼 | Q110: 昼 | R110: 昼 | S110: 昼 | T110: 昼 | U110: 昼 | V110: 昼 | W110: 昼 | Y110: 昼 | Z110: 昼 | AA110: 昼 | AB110: 昼 | AC110: 昼 | AD110: 昼 | AE110: 昼 | AF110: 昼 | AG110: 昼 | AH110: 昼 | AI110: 昼 | AJ110: 昼 | AK110: 昼 | AL110: 昼 | AM110: 昼
M111: 11 | N111: 40 | O111: 昼 | P111: 昼 | Q111: 昼 | R111: 昼 | S111: 昼 | T111: 昼 | U111: 昼 | V111: 昼 | W111: 昼 | Y111: 昼 | Z111: 昼 | AA111: 昼 | AB111: 昼 | AC111: 昼 | AD111: 昼 | AE111: 昼 | AF111: 昼 | AG111: 昼 | AH111: 昼 | AI111: 昼 | AJ111: 昼 | AK111: 昼 | AL111: 昼 | AM111: 昼
M112: 12 | N112: 0 | O112: 昼 | P112: 昼 | Q112: 昼 | R112: 昼 | S112: 昼 | T112: 昼 | U112: 昼 | V112: 昼 | W112: 昼 | Y112: 昼 | Z112: 昼 | AA112: 昼 | AB112: 昼 | AC112: 昼 | AD112: 昼 | AE112: 昼 | AF112: 昼 | AG112: 昼 | AH112: 昼 | AI112: 昼 | AJ112: 昼 | AK112: 昼 | AL112: 昼 | AM112: 昼
M113: 12 | N113: 20 | O113: 昼 | P113: 昼 | Q113: 昼 | R113: 昼 | S113: 昼 | T113: 昼 | U113: 昼 | V113: 昼 | W113: 昼 | Y113: 昼 | Z113: 昼 | AA113: 昼 | AB113: 昼 | AC113: 昼 | AD113: 昼 | AE113: 昼 | AF113: 昼 | AG113: 昼 | AH113: 昼 | AI113: 昼 | AJ113: 昼 | AK113: 昼 | AL113: 昼 | AM113: 昼
M114: 12 | N114: 40 | O114: 昼 | P114: 昼 | Q114: 昼 | R114: 昼 | S114: 昼 | T114: 昼 | U114: 昼 | V114: 昼 | W114: 昼 | Y114: 昼 | Z114: 昼 | AA114: 昼 | AB114: 昼 | AC114: 昼 | AD114: 昼 | AE114: 昼 | AF114: 昼 | AG114: 昼 | AH114: 昼 | AI114: 昼 | AJ114: 昼 | AK114: 昼 | AL114: 昼 | AM114: 昼
M115: 13 | N115: 0 | O115: 昼 | P115: 昼 | Q115: 昼 | R115: 昼 | S115: 昼 | T115: 昼 | U115: 昼 | V115: 昼 | W115: 昼 | Y115: 昼 | Z115: 昼 | AA115: 昼 | AB115: 昼 | AC115: 昼 | AD115: 昼 | AE115: 昼 | AF115: 昼 | AG115: 昼 | AH115: 昼 | AI115: 昼 | AJ115: 昼 | AK115: 昼 | AL115: 昼 | AM115: 昼
M116: 13 | N116: 20 | O116: 昼 | P116: 昼 | Q116: 昼 | R116: 昼 | S116: 昼 | T116: 昼 | U116: 昼 | V116: 昼 | W116: 昼 | Y116: 昼 | Z116: 昼 | AA116: 昼 | AB116: 昼 | AC116: 昼 | AD116: 昼 | AE116: 昼 | AF116: 昼 | AG116: 昼 | AH116: 昼 | AI116: 昼 | AJ116: 昼 | AK116: 昼 | AL116: 昼 | AM116: 昼
M117: 13 | N117: 40 | O117: 昼 | P117: 昼 | Q117: 昼 | R117: 昼 | S117: 昼 | T117: 昼 | U117: 昼 | V117: 昼 | W117: 昼 | Y117: 昼 | Z117: 昼 | AA117: 昼 | AB117: 昼 | AC117: 昼 | AD117: 昼 | AE117: 昼 | AF117: 昼 | AG117: 昼 | AH117: 昼 | AI117: 昼 | AJ117: 昼 | AK117: 昼 | AL117: 昼 | AM117: 昼
M118: 14 | N118: 0 | O118: 昼 | P118: 昼 | Q118: 昼 | R118: 昼 | S118: 昼 | T118: 昼 | U118: 昼 | V118: 昼 | W118: 昼 | Y118: 昼 | Z118: 昼 | AA118: 昼 | AB118: 昼 | AC118: 昼 | AD118: 昼 | AE118: 昼 | AF118: 昼 | AG118: 昼 | AH118: 昼 | AI118: 昼 | AJ118: 昼 | AK118: 昼 | AL118: 昼 | AM118: 昼
M119: 14 | N119: 20 | O119: 昼 | P119: 昼 | Q119: 昼 | R119: 昼 | S119: 昼 | T119: 昼 | U119: 昼 | V119: 昼 | W119: 昼 | Y119: 昼 | Z119: 昼 | AA119: 昼 | AB119: 昼 | AC119: 昼 | AD119: 昼 | AE119: 昼 | AF119: 昼 | AG119: 昼 | AH119: 昼 | AI119: 昼 | AJ119: 昼 | AK119: 昼 | AL119: 昼 | AM119: 昼
M120: 14 | N120: 40 | O120: 昼 | P120: 昼 | Q120: 昼 | R120: 昼 | S120: 昼 | T120: 昼 | U120: 昼 | V120: 昼 | W120: 昼 | Y120: 昼 | Z120: 昼 | AA120: 昼 | AB120: 昼 | AC120: 昼 | AD120: 昼 | AE120: 昼 | AF120: 昼 | AG120: 昼 | AH120: 昼 | AI120: 昼 | AJ120: 昼 | AK120: 昼 | AL120: 昼 | AM120: 昼
M121: 15 | N121: 0 | O121: 昼 | P121: 昼 | Q121: 昼 | R121: 昼 | S121: 昼 | T121: 昼 | U121: 昼 | V121: 昼 | W121: 昼 | Y121: 昼 | Z121: 昼 | AA121: 昼 | AB121: 昼 | AC121: 昼 | AD121: 昼 | AE121: 昼 | AF121: 昼 | AG121: 昼 | AH121: 昼 | AI121: 昼 | AJ121: 昼 | AK121: 昼 | AL121: 昼 | AM121: 昼
M122: 15 | N122: 20 | O122: 昼 | P122: 昼 | Q122: 昼 | R122: 昼 | S122: 昼 | T122: 昼 | U122: 昼 | V122: 昼 | W122: 昼 | Y122: 昼 | Z122: 昼 | AA122: 昼 | AB122: 昼 | AC122: 昼 | AD122: 昼 | AE122: 昼 | AF122: 昼 | AG122: 昼 | AH122: 昼 | AI122: 昼 | AJ122: 昼 | AK122: 昼 | AL122: 昼 | AM122: 昼
M123: 15 | N123: 40 | O123: 昼 | P123: 昼 | Q123: 昼 | R123: 昼 | S123: 昼 | T123: 昼 | U123: 昼 | V123: 昼 | W123: 昼 | Y123: 昼 | Z123: 昼 | AA123: 昼 | AB123: 昼 | AC123: 昼 | AD123: 昼 | AE123: 昼 | AF123: 昼 | AG123: 昼 | AH123: 昼 | AI123: 昼 | AJ123: 昼 | AK123: 昼 | AL123: 昼 | AM123: 昼
M124: 16 | N124: 0 | O124: 昼 | P124: 昼 | Q124: 昼 | R124: 昼 | S124: 昼 | T124: 昼 | U124: 昼 | V124: 昼 | W124: 日入後 | Y124: 昼 | Z124: 昼 | AA124: 昼 | AB124: 昼 | AC124: 昼 | AD124: 昼 | AE124: 昼 | AF124: 昼 | AG124: 昼 | AH124: 昼 | AI124: 昼 | AJ124: 昼 | AK124: 昼 | AL124: 昼 | AM124: 昼
M125: 16 | N125: 20 | O125: 昼 | P125: 昼 | Q125: 昼 | R125: 昼 | S125: 昼 | T125: 昼 | U125: 昼 | V125: 日入後 | W125: 日入後 | Y125: 昼 | Z125: 昼 | AA125: 昼 | AB125: 昼 | AC125: 昼 | AD125: 昼 | AE125: 昼 | AF125: 昼 | AG125: 昼 | AH125: 昼 | AI125: 昼 | AJ125: 昼 | AK125: 昼 | AL125: 昼 | AM125: 昼
M126: 16 | N126: 40 | O126: 昼 | P126: 昼 | Q126: 昼 | R126: 昼 | S126: 昼 | T126: 昼 | U126: 昼 | V126: 日入後 | W126: 夜 | Y126: 昼 | Z126: 昼 | AA126: 昼 | AB126: 昼 | AC126: 昼 | AD126: 昼 | AE126: 昼 | AF126: 昼 | AG126: 昼 | AH126: 昼 | AI126: 昼 | AJ126: 昼 | AK126: 昼 | AL126: 昼 | AM126: 昼
M127: 17 | N127: 0 | O127: 昼 | P127: 昼 | Q127: 日入後 | R127: 昼 | S127: 昼 | T127: 昼 | U127: 昼 | V127: 夜 | W127: 夜 | Y127: 昼 | Z127: 昼 | AA127: 昼 | AB127: 昼 | AC127: 昼 | AD127: 昼 | AE127: 昼 | AF127: 昼 | AG127: 日入後 | AH127: 昼 | AI127: 昼 | AJ127: 昼 | AK127: 昼 | AL127: 昼 | AM127: 昼
M128: 17 | N128: 20 | O128: 昼 | P128: 昼 | Q128: 日入後 | R128: 昼 | S128: 昼 | T128: 昼 | U128: 昼 | V128: 夜 | W128: 夜 | Y128: 日入後 | Z128: 日入後 | AA128: 昼 | AB128: 昼 | AC128: 昼 | AD128: 昼 | AE128: 昼 | AF128: 昼 | AG128: 日入後 | AH128: 昼 | AI128: 昼 | AJ128: 昼 | AK128: 昼 | AL128: 昼 | AM128: 昼
M129: 17 | N129: 40 | O129: 昼 | P129: 昼 | Q129: 夜 | R129: 昼 | S129: 昼 | T129: 昼 | U129: 昼 | V129: 夜 | W129: 夜 | Y129: 日入後 | Z129: 日入後 | AA129: 昼 | AB129: 昼 | AC129: 昼 | AD129: 昼 | AE129: 昼 | AF129: 昼 | AG129: 夜 | AH129: 昼 | AI129: 昼 | AJ129: 昼 | AK129: 昼 | AL129: 昼 | AM129: 昼
M130: 18 | N130: 0 | O130: 日入後 | P130: 昼 | Q130: 夜 | R130: 昼 | S130: 昼 | T130: 日入後 | U130: 昼 | V130: 夜 | W130: 夜 | Y130: 夜 | Z130: 夜 | AA130: 昼 | AB130: 昼 | AC130: 昼 | AD130: 昼 | AE130: 昼 | AF130: 昼 | AG130: 夜 | AH130: 昼 | AI130: 日入後 | AJ130: 昼 | AK130: 昼 | AL130: 昼 | AM130: 昼
M131: 18 | N131: 20 | O131: 日入後 | P131: 昼 | Q131: 夜 | R131: 昼 | S131: 昼 | T131: 日入後 | U131: 昼 | V131: 夜 | W131: 夜 | Y131: 夜 | Z131: 夜 | AA131: 昼 | AB131: 昼 | AC131: 昼 | AD131: 昼 | AE131: 昼 | AF131: 昼 | AG131: 夜 | AH131: 昼 | AI131: 日入後 | AJ131: 昼 | AK131: 昼 | AL131: 昼 | AM131: 昼
M132: 18 | N132: 40 | O132: 日入後 | P132: 昼 | Q132: 夜 | R132: 昼 | S132: 昼 | T132: 日入後 | U132: 昼 | V132: 夜 | W132: 夜 | Y132: 夜 | Z132: 夜 | AA132: 昼 | AB132: 昼 | AC132: 昼 | AD132: 昼 | AE132: 昼 | AF132: 昼 | AG132: 夜 | AH132: 昼 | AI132: 夜 | AJ132: 昼 | AK132: 昼 | AL132: 昼 | AM132: 昼
M133: 19 | N133: 0 | O133: 夜 | P133: 日入後 | Q133: 夜 | R133: 昼 | S133: 昼 | T133: 夜 | U133: 昼 | V133: 夜 | W133: 夜 | Y133: 夜 | Z133: 夜 | AA133: 昼 | AB133: 昼 | AC133: 昼 | AD133: 昼 | AE133: 昼 | AF133: 昼 | AG133: 夜 | AH133: 昼 | AI133: 夜 | AJ133: 日入後 | AK133: 日入後 | AL133: 日入後 | AM133: 日入後
M134: 19 | N134: 20 | O134: 夜 | P134: 日入後 | Q134: 夜 | R134: 昼 | S134: 昼 | T134: 夜 | U134: 昼 | V134: 夜 | W134: 夜 | Y134: 夜 | Z134: 夜 | AA134: 日入後 | AB134: 日入後 | AC134: 昼 | AD134: 昼 | AE134: 昼 | AF134: 昼 | AG134: 夜 | AH134: 日入後 | AI134: 夜 | AJ134: 日入後 | AK134: 日入後 | AL134: 日入後 | AM134: 日入後
M135: 19 | N135: 40 | O135: 夜 | P135: 夜 | Q135: 夜 | R135: 昼 | S135: 昼 | T135: 夜 | U135: 日入後 | V135: 夜 | W135: 夜 | Y135: 夜 | Z135: 夜 | AA135: 日入後 | AB135: 夜 | AC135: 昼 | AD135: 昼 | AE135: 昼 | AF135: 昼 | AG135: 夜 | AH135: 日入後 | AI135: 夜 | AJ135: 夜 | AK135: 夜 | AL135: 夜 | AM135: 夜
M136: 20 | N136: 0 | O136: 夜 | P136: 夜 | Q136: 夜 | R136: 昼 | S136: 日入後 | T136: 夜 | U136: 日入後 | V136: 夜 | W136: 夜 | Y136: 夜 | Z136: 夜 | AA136: 夜 | AB136: 夜 | AC136: 日入後 | AD136: 日入後 | AE136: 日入後 | AF136: 日入後 | AG136: 夜 | AH136: 夜 | AI136: 夜 | AJ136: 夜 | AK136: 夜 | AL136: 夜 | AM136: 夜
M137: 20 | N137: 20 | O137: 夜 | P137: 夜 | Q137: 夜 | R137: 昼 | S137: 日入後 | T137: 夜 | U137: 夜 | V137: 夜 | W137: 夜 | Y137: 夜 | Z137: 夜 | AA137: 夜 | AB137: 夜 | AC137: 日入後 | AD137: 日入後 | AE137: 日入後 | AF137: 日入後 | AG137: 夜 | AH137: 夜 | AI137: 夜 | AJ137: 夜 | AK137: 夜 | AL137: 夜 | AM137: 夜
M138: 20 | N138: 40 | O138: 夜 | P138: 夜 | Q138: 夜 | R138: 日入後 | S138: 日入後 | T138: 夜 | U138: 夜 | V138: 夜 | W138: 夜 | Y138: 夜 | Z138: 夜 | AA138: 夜 | AB138: 夜 | AC138: 日入後 | AD138: 日入後 | AE138: 日入後 | AF138: 日入後 | AG138: 夜 | AH138: 夜 | AI138: 夜 | AJ138: 夜 | AK138: 夜 | AL138: 夜 | AM138: 夜
M139: 21 | N139: 0 | O139: 夜 | P139: 夜 | Q139: 夜 | R139: 日入後 | S139: 夜 | T139: 夜 | U139: 夜 | V139: 夜 | W139: 夜 | Y139: 夜 | Z139: 夜 | AA139: 夜 | AB139: 夜 | AC139: 夜 | AD139: 夜 | AE139: 夜 | AF139: 夜 | AG139: 夜 | AH139: 夜 | AI139: 夜 | AJ139: 夜 | AK139: 夜 | AL139: 夜 | AM139: 夜
M140: 21 | N140: 20 | O140: 夜 | P140: 夜 | Q140: 夜 | R140: 日入後 | S140: 夜 | T140: 夜 | U140: 夜 | V140: 夜 | W140: 夜 | Y140: 夜 | Z140: 夜 | AA140: 夜 | AB140: 夜 | AC140: 夜 | AD140: 夜 | AE140: 夜 | AF140: 夜 | AG140: 夜 | AH140: 夜 | AI140: 夜 | AJ140: 夜 | AK140: 夜 | AL140: 夜 | AM140: 夜
M141: 21 | N141: 40 | O141: 夜 | P141: 夜 | Q141: 夜 | R141: 夜 | S141: 夜 | T141: 夜 | U141: 夜 | V141: 夜 | W141: 夜 | Y141: 夜 | Z141: 夜 | AA141: 夜 | AB141: 夜 | AC141: 夜 | AD141: 夜 | AE141: 夜 | AF141: 夜 | AG141: 夜 | AH141: 夜 | AI141: 夜 | AJ141: 夜 | AK141: 夜 | AL141: 夜 | AM141: 夜
M142: 22 | N142: 0 | O142: 夜 | P142: 夜 | Q142: 夜 | R142: 夜 | S142: 夜 | T142: 夜 | U142: 夜 | V142: 夜 | W142: 夜 | Y142: 夜 | Z142: 夜 | AA142: 夜 | AB142: 夜 | AC142: 夜 | AD142: 夜 | AE142: 夜 | AF142: 夜 | AG142: 夜 | AH142: 夜 | AI142: 夜 | AJ142: 夜 | AK142: 夜 | AL142: 夜 | AM142: 夜
M143: 22 | N143: 20 | O143: 夜 | P143: 夜 | Q143: 夜 | R143: 夜 | S143: 夜 | T143: 夜 | U143: 夜 | V143: 夜 | W143: 夜 | Y143: 夜 | Z143: 夜 | AA143: 夜 | AB143: 夜 | AC143: 夜 | AD143: 夜 | AE143: 夜 | AF143: 夜 | AG143: 夜 | AH143: 夜 | AI143: 夜 | AJ143: 夜 | AK143: 夜 | AL143: 夜 | AM143: 夜
M144: 22 | N144: 40 | O144: 夜 | P144: 夜 | Q144: 夜 | R144: 夜 | S144: 夜 | T144: 夜 | U144: 夜 | V144: 夜 | W144: 夜 | Y144: 夜 | Z144: 夜 | AA144: 夜 | AB144: 夜 | AC144: 夜 | AD144: 夜 | AE144: 夜 | AF144: 夜 | AG144: 夜 | AH144: 夜 | AI144: 夜 | AJ144: 夜 | AK144: 夜 | AL144: 夜 | AM144: 夜
M145: 23 | N145: 0 | O145: 夜 | P145: 夜 | Q145: 夜 | R145: 夜 | S145: 夜 | T145: 夜 | U145: 夜 | V145: 夜 | W145: 夜 | Y145: 夜 | Z145: 夜 | AA145: 夜 | AB145: 夜 | AC145: 夜 | AD145: 夜 | AE145: 夜 | AF145: 夜 | AG145: 夜 | AH145: 夜 | AI145: 夜 | AJ145: 夜 | AK145: 夜 | AL145: 夜 | AM145: 夜
M146: 23 | N146: 20 | O146: 夜 | P146: 夜 | Q146: 夜 | R146: 夜 | S146: 夜 | T146: 夜 | U146: 夜 | V146: 夜 | W146: 夜 | Y146: 夜 | Z146: 夜 | AA146: 夜 | AB146: 夜 | AC146: 夜 | AD146: 夜 | AE146: 夜 | AF146: 夜 | AG146: 夜 | AH146: 夜 | AI146: 夜 | AJ146: 夜 | AK146: 夜 | AL146: 夜 | AM146: 夜
M147: 23 | N147: 40 | O147: 夜 | P147: 夜 | Q147: 夜 | R147: 夜 | S147: 夜 | T147: 夜 | U147: 夜 | V147: 夜 | W147: 夜 | Y147: 夜 | Z147: 夜 | AA147: 夜 | AB147: 夜 | AC147: 夜 | AD147: 夜 | AE147: 夜 | AF147: 夜 | AG147: 夜 | AH147: 夜 | AI147: 夜 | AJ147: 夜 | AK147: 夜 | AL147: 夜 | AM147: 夜

Sheet 天候変化
B1: 賽の目min | C1: 天候 | H1: 対象ゲーム | I1: 天候結果 | J1: 天候数値 | K1: 乱数２ | L1: 検索キー | N1: 歩兵 | O1: 騎兵 | P1: 砲兵
A2: 可変1 | B2: 11 | C2: 晴 | D2: =VALUE(MID(B2,1,1)) -> 1 | E2: =VALUE(MID(B2,2,1)) -> 1 | F2: =(D2-1)*6+E2 -> 1 | G2: =F2+100*VALUE(MID(A2,3,1)) -> 101 | H2: Albuera | I2: =LOOKUP(L2,G2:G37,C2:C37) ->  | K2: =士気2!J39 -> 27 | L2: =J2*100+K2 -> 27 | N2: =IF($J$2=7,N48,N59) -> -50 | O2: =IF($J$2=7,O48,O59) -> -43 | P2: -76
A3: 可変1 | B3: 22 | C3: 小雨 | D3: =VALUE(MID(B3,1,1)) -> 2 | E3: =VALUE(MID(B3,2,1)) -> 2 | F3: 8 | G3: =F3+100*VALUE(MID(A3,3,1)) -> 108 | H3: Albuera
A4: 可変1 | B4: 51 | C4: 霧 | D4: 5 | E4: 1 | F4: 25 | G4: 125 | H4: Albuera | J4: 濃淡霧の視程 | K4: 時刻（時） | L4: LOSのmax
A5: 可変1 | B5: 62 | C5: 雨 | D5: 6 | E5: 2 | F5: 32 | G5: 132 | H5: Albuera | J5: 現在 | K5: =時刻変化!H2 -> 5 | L5: =LOOKUP(K5,K11:K17,L11:L17) -> 99
A6: 可変1 | B6: 66 | C6: 激しい雨 | D6: 6 | E6: 6 | F6: =(D6-1)*6+E6 -> 36 | G6: 136 | H6: Albuera | J6: 条件 | K6: 0 | L6: 99
A7: 可変2 | B7: 11 | C7: 晴 | D7: 1 | E7: 1 | F7: =(D7-1)*6+E7 -> 1 | G7: 201 | H7: Albuera | K7: 1 | L7: 99
A8: 可変2 | B8: 21 | C8: 小雨 | D8: 2 | E8: 1 | F8: 7 | G8: 207 | H8: Albuera | K8: 2 | L8: 99
A9: 可変2 | B9: 34 | C9: 霧 | D9: 3 | E9: 4 | F9: 16 | G9: 216 | H9: Albuera | K9: 3 | L9: 99
A10: 可変2 | B10: 51 | C10: 雨 | D10: 5 | E10: 1 | F10: 25 | G10: 225 | H10: Albuera | K10: 4 | L10: 99 | N10: 雪の補正
A11: 可変2 | B11: 65 | C11: 激しい雨 | D11: 6 | E11: 5 | F11: 35 | G11: 235 | H11: Albuera | K11: 5 | L11: 99 | N11: 前回値 | O11: 乱数１ | P11: 補正値 | Q11: 天候結果
A12: 可変3 | B12: 11 | C12: 晴 | D12: 1 | E12: 1 | F12: 1 | G12: 301 | H12: Albuera | K12: 6 | L12: 99 | N12: 1 | O12: =士気2!J38 -> 2 | P12: 6 | Q12: 吹雪
A13: 可変3 | B13: 14 | C13: 小雨 | D13: 1 | E13: 4 | F13: 4 | G13: 304 | H13: Albuera | K13: 7 | L13: =ROUNDDOWN(RANDBETWEEN(100,699)/100,0)+1 -> 5 | M13: Auerstat
A14: 可変3 | B14: 22 | C14: 霧 | D14: 2 | E14: 2 | F14: 8 | G14: 308 | H14: Albuera | K14: 8 | L14: =ROUNDDOWN(RANDBETWEEN(100,699)/100,0)+2 -> 7 | M14: Auerstat
A15: 可変3 | B15: 34 | C15: 雨 | D15: 3 | E15: 4 | F15: 16 | G15: 316 | H15: Albuera | K15: 9 | L15: =ROUNDDOWN(RANDBETWEEN(100,699)/100,0)+3 -> 8 | M15: Auerstat
A16: 可変3 | B16: 45 | C16: 激しい雨 | D16: 4 | E16: 5 | F16: 23 | G16: 323 | H16: Albuera | K16: 10 | L16: 99 | N16: Dredenの視程 | P16: LOSのmax
A17: 可変4 | B17: 11 | C17: 晴 | D17: 1 | E17: 1 | F17: 1 | G17: 401 | H17: Albuera | K17: 11 | L17: 99 | N17: 現在 | O17: =J2 -> 0 | P17: =LOOKUP(O17,O18:O20,P18:P20) -> 
A18: 可変4 | B18: 34 | C18: 小雨 | D18: 3 | E18: 4 | F18: 16 | G18: 416 | H18: Albuera | K18: 12 | L18: 99 | N18: 条件 | O18: 9 | P18: 6 | Q18: 07:00:00
A19: 可変4 | B19: 51 | C19: 霧 | D19: 5 | E19: 1 | F19: 25 | G19: 425 | H19: Albuera | K19: 13 | L19: 99 | O19: 10 | P19: 8 | Q19: 07:20:00
A20: 可変4 | B20: 64 | C20: 雨 | D20: 6 | E20: 4 | F20: 34 | G20: 434 | H20: Albuera | K20: 14 | L20: 99 | O20: 11 | P20: 10 | Q20: 07:40:00
A21: 可変4 | B21: 66 | C21: 激しい雨 | D21: 6 | E21: 6 | F21: 36 | G21: 436 | H21: Albuera | K21: 15 | L21: 99
A22: 可変5 | B22: 11 | C22: 晴 | D22: =VALUE(MID(B22,1,1)) -> 1 | E22: =VALUE(MID(B22,2,1)) -> 1 | F22: =(D22-1)*6+E22 -> 1 | G22: =F22+100*VALUE(MID(A22,3,1)) -> 501 | H22: Eylau | K22: 16 | L22: 99
A23: 可変5 | B23: 31 | C23: 雪 | D23: 3 | E23: 1 | F23: 13 | G23: 513 | H23: Eylau | K23: 17 | L23: 99
A24: 可変5 | B24: 61 | C24: 吹雪 | D24: 6 | E24: 1 | F24: 31 | G24: 531 | H24: Eylau | K24: 18 | L24: 99
A25: 可変6 | B25: 11 | C25: 雷雨 | D25: =VALUE(MID(B25,1,1)) -> 1 | E25: =VALUE(MID(B25,2,1)) -> 1 | F25: =(D25-1)*6+E25 -> 1 | G25: =F25+100*VALUE(MID(A25,3,1)) -> 601 | H25: Ligny | K25: 19 | L25: 99
A26: 可変6 | B26: 15 | C26: 晴 | D26: 1 | E26: 5 | F26: 5 | G26: 605 | H26: Ligny | K26: 20 | L26: 99
A27: 可変7 | B27: 11 | C27: 泥濘 | D27: =VALUE(MID(B27,1,1)) -> 1 | E27: =VALUE(MID(B27,2,1)) -> 1 | F27: =(D27-1)*6+E27 -> 1 | G27: =F27+100*VALUE(MID(A27,3,1)) -> 701 | H27: Vauchamps | K27: 21 | L27: 99
A28: 可変7 | B28: 66 | C28: 泥濘 | D28: 6 | E28: 6 | F28: 36 | G28: 736 | H28: Vauchamps | K28: 22 | L28: 99
A29: 可変8 | B29: 11 | C29: 泥濘 | D29: 1 | E29: 1 | F29: 1 | G29: 801 | H29: Vauchamps | K29: 23 | L29: 99
A30: 可変8 | B30: 66 | C30: 泥濘 | D30: 6 | E30: 6 | F30: 36 | G30: 836 | H30: Vauchamps
A31: 可変9 | B31: 11 | C31: 可変雨 | D31: =VALUE(MID(B31,1,1)) -> 1 | E31: =VALUE(MID(B31,2,1)) -> 1 | F31: =(D31-1)*6+E31 -> 1 | G31: =F31+100*VALUE(MID(A31,3,1)) -> 901 | H31: Dresden | J31: 雷雨の場所 | K31: 乱数５ | L31: =士気2!J42 -> 33 | M31: 発生箇所 | N31: =LOOKUP(L31,N33:N44,K33:K44) -> SW+NW+QB
A32: 可変9 | B32: 66 | C32: 可変雨 | D32: 6 | E32: 6 | F32: 36 | G32: 936 | H32: Dresden | J32: 賽の目min | K32: 箇所
A33: 可変10 | B33: 11 | C33: 可変雨 | D33: 1 | E33: 1 | F33: 1 | G33: =F33+100*VALUE(MID(A33,3,2)) -> 1001 | H33: Dresden | J33: 11 | K33: QB | L33: =VALUE(MID(J33,1,1)) -> 1 | M33: =VALUE(MID(J33,2,1)) -> 1 | N33: =(L33-1)*6+M33 -> 1 | O33: Ligny
A34: 可変10 | B34: 66 | C34: 可変雨 | D34: 6 | E34: 6 | F34: 36 | G34: =F34+100*VALUE(MID(A34,3,2)) -> 1036 | H34: Dresden | J34: 14 | K34: NE | L34: =VALUE(MID(J34,1,1)) -> 1 | M34: =VALUE(MID(J34,2,1)) -> 4 | N34: =(L34-1)*6+M34 -> 4 | O34: Ligny
A35: 可変11 | B35: 11 | C35: 可変雨 | D35: 1 | E35: 1 | F35: 1 | G35: 1101 | H35: Dresden | J35: 23 | K35: SE | L35: 2 | M35: 3 | N35: 9 | O35: Ligny
A36: 可変11 | B36: 66 | C36: 可変雨 | D36: 6 | E36: 6 | F36: 36 | G36: 1136 | H36: Dresden | J36: 32 | K36: SW | L36: 3 | M36: 2 | N36: 14 | O36: Ligny
A37: 可変12 | B37: 11 | C37: 要調整！ | D37: =VALUE(MID(B37,1,1)) -> 1 | E37: =VALUE(MID(B37,2,1)) -> 1 | F37: =(D37-1)*6+E37 -> 1 | G37: 1201 | J37: 41 | K37: NW | L37: 4 | M37: 1 | N37: 19 | O37: Ligny
J38: 46 | K38: QB+NW | L38: 4 | M38: 6 | N38: 24 | O38: Ligny
J39: 51 | K39: NE+SE | L39: 5 | M39: 1 | N39: 25 | O39: Ligny
J40: 54 | K40: SE+SW | L40: 5 | M40: 4 | N40: 28 | O40: Ligny
J41: 61 | K41: SW+NW | L41: 6 | M41: 1 | N41: 31 | O41: Ligny
J42: 63 | K42: SW+NW+QB | L42: 6 | M42: 3 | N42: 33 | O42: Ligny
J43: 64 | K43: NW+NE | L43: 6 | M43: 4 | N43: 34 | O43: Ligny
J44: 66 | K44: NW+NE+QB | L44: 6 | M44: 6 | N44: 36 | O44: Ligny
J46: 泥濘の移動低下1
J47: Vauchamps 0900-1100
J48: 乱数５ | K48: =士気2!J42 -> 33 | M48: 該当 | N48: =LOOKUP(K48,M50:M56,N50:N56) -> -30 | O48: =LOOKUP(K48,M50:M56,O50:O56) -> -36 | P48: =LOOKUP(K48,M50:M56,P50:P56) -> -50
J49: 賽の目min | N49: 歩兵 | O49: 騎兵 | P49: 砲兵
J50: 11 | K50: =VALUE(MID(J50,1,1)) -> 1 | L50: =VALUE(MID(J50,2,1)) -> 1 | M50: =(K50-1)*6+L50 -> 1 | N50: 0 | O50: 0 | P50: 0
J51: 21 | K51: 2 | L51: 1 | M51: =(K51-1)*6+L51 -> 7 | N51: 0 | O51: -7 | P51: -15
J52: 31 | K52: 3 | L52: 1 | M52: 13 | N52: -15 | O52: -14 | P52: -15
J53: 41 | K53: 4 | L53: 1 | M53: 19 | N53: -15 | O53: -21 | P53: -30
J54: 51 | K54: 5 | L54: 1 | M54: 25 | N54: -30 | O54: -28 | P54: -30
J55: 61 | K55: 6 | L55: 1 | M55: 31 | N55: -30 | O55: -36 | P55: -50
J56: 66 | K56: 6 | L56: 6 | M56: 36 | N56: -30 | O56: -36 | P56: -50
J57: 泥濘の移動低下2
J58: Vauchamps 1120-
J59: 乱数５ | K59: =士気2!J42 -> 33 | M59: 該当 | N59: =LOOKUP(K59,M61:M67,N61:N67) -> -50 | O59: =LOOKUP(K59,M61:M67,O61:O67) -> -43 | P59: =LOOKUP(K59,M61:M67,P61:P67) -> -76
J60: 賽の目min | N60: 歩兵 | O60: 騎兵 | P60: 砲兵
J61: 11 | K61: =VALUE(MID(J61,1,1)) -> 1 | L61: =VALUE(MID(J61,2,1)) -> 1 | M61: =(K61-1)*6+L61 -> 1 | N61: 0 | O61: -7 | P61: -15
J62: 21 | K62: 2 | L62: 1 | M62: 7 | N62: -15 | O62: -14 | P62: -15
J63: 31 | K63: 3 | L63: 1 | M63: 13 | N63: -15 | O63: -21 | P63: -30
J64: 41 | K64: 4 | L64: 1 | M64: 19 | N64: -30 | O64: -28 | P64: -50
J65: 51 | K65: 5 | L65: 1 | M65: 25 | N65: -30 | O65: -36 | P65: -60
J66: 61 | K66: 6 | L66: 1 | M66: 31 | N66: -50 | O66: -43 | P66: -76
J67: 66 | K67: 6 | L67: 6 | M67: 36 | N67: -50 | O67: -43 | P67: -76

Sheet 天候
B1: 日出前 | C1: 昼 | D1: 日入後 | E1: 夜 | G1: 晴 | H1: 霧 | I1: 小雨 | J1: 雨 | K1: 激しい雨 | L1: 雪 | M1: 吹雪 | N1: 濃淡霧 | O1: 雷雨 | P1: 豪雨の後 | Q1: 水浸し | R1: 泥濘 | S1: 朝霧 | T1: 可変雨
B2: 1 | C2: 2 | D2: 3 | E2: 4 | G2: 1 | H2: 2 | I2: 3 | J2: 4 | K2: 5 | L2: 6 | M2: 7 | N2: 8 | O2: 9 | P2: 10 | Q2: 11 | R2: 12 | S2: 13 | T2: 14
A3: LOSの最大HEX | B3: 3 | C3: 99 | D3: 3 | E3: 2 | G3: 99 | H3: 4 | I3: 10 | J3: 6 | K3: 1 | L3: 6 | M3: 1 | N3: 89 | O3: 5 | P3: 99 | Q3: 99 | R3: 99 | S3: 4 | T3: 88
A4: 散開隊形の射撃射程HEX | B4: 2 | C4: 2 | D4: 2 | E4: 1 | G4: 2 | H4: 2 | I4: 2 | J4: 2 | K4: 0 | L4: 2 | M4: 0 | N4: 2 | O4: 0 | P4: 0 | Q4: 0 | R4: 2 | S4: 1 | T4: 2
A5: 騎兵突撃 | B5: 0 | C5: 0 | D5: 0 | E5: 0 | G5: 0 | H5: 0 | I5: 0 | J5: 0 | K5: -99 | L5: 0 | M5: -99 | N5: 0 | O5: 0 | P5: 0 | Q5: 0 | R5: 0 | S5: 0 | T5: 0
A6: 騎兵突撃のボーナス | B6: 5 | C6: 5 | D6: 5 | E6: 0 | G6: 5 | H6: 0 | I6: 5 | J6: 0 | K6: 0 | L6: 0 | M6: 0 | N6: 0 | O6: 0 | P6: 0 | Q6: 0 | R6: 0 | S6: 0 | T6: 5
A7: 歩兵射撃の可否 補正(%) | B7: 0 | C7: 0 | D7: 0 | E7: -33 | G7: 0 | H7: 0 | I7: -33 | J7: -50 | K7: -99 | L7: -50 | M7: -99 | N7: 0 | O7: -50 | P7: -99 | Q7: 0 | R7: 0 | S7: 0 | T7: 0
A8: 砲兵射撃の可否 補正(%) | B8: -33 | C8: 0 | D8: -33 | E8: -50 | G8: 0 | H8: 0 | I8: 0 | J8: 0 | K8: -99 | L8: 0 | M8: -99 | N8: 0 | O8: 0 | P8: 0 | Q8: 0 | R8: 0 | S8: 0 | T8: 0
A9: 歩兵移動力補正(%) | B9: 0 | C9: 0 | D9: 0 | E9: -50 | G9: 0 | H9: -10 | I9: -10 | J9: -33 | K9: -70 | L9: -40 | M9: -80 | N9: -10 | O9: -50 | P9: 0 | Q9: 0 | R9: 79 | S9: 0 | T9: 0
A10: 騎兵移動力補正(%) | B10: 0 | C10: 0 | D10: 0 | E10: -50 | G10: 0 | H10: -20 | I10: -10 | J10: -33 | K10: -70 | L10: -40 | M10: -80 | N10: -20 | O10: -50 | P10: 0 | Q10: 0 | R10: 79 | S10: 0 | T10: 0
A11: 砲兵移動力補正(%) | B11: 0 | C11: 0 | D11: 0 | E11: -50 | G11: 0 | H11: -15 | I11: -10 | J11: -33 | K11: -70 | L11: -40 | M11: -80 | N11: -15 | O11: -50 | P11: -50 | Q11: -50 | R11: 79 | S11: 0 | T11: 0
A14: =時間!A7 -> 時間帯 | B14: =時間!A8 -> 昼 | C14: =IF(B14=B1,1,IF(B14=C1,2,IF(B14=D1,3,4))) -> 2
A15: =時間!B7 -> 天候 | B15: =時間!B8 -> 晴 | C15: =INDEX(G1:T2,2,MATCH(B15,G1:T1,0)) -> 1
B19: =A14 -> 時間帯 | C19: =A15 -> 天候 | D19: 可変 | E19: 比較 | F19: 変換
A20: =A3 -> LOSの最大HEX | B20: =HLOOKUP($C$14,$B$2:$E$11,2,TRUE) -> 99 | C20: =HLOOKUP($C$15,$G$2:$T$11,2,TRUE) -> 99 | D20: =IF(C20=N3,天候変化!L5,IF(C20=T3,天候変化!P17,C20)) -> 99 | E20: =IF(B20<D20,B20,D20) -> 99 | F20: =IF(E20=99,"無限",E20) -> 無限
A21: 散開隊形の射撃射程HEX | B21: =HLOOKUP($C$14,$B$2:$E$11,3,TRUE) -> 2 | C21: =HLOOKUP($C$15,$G$2:$T$11,3,TRUE) -> 2 | D21: =C21 -> 2 | E21: =IF(B21<D21,B21,D21) -> 2 | F21: =IF(E21=0,"射撃不可",E21) -> 2
A22: 騎兵突撃 | B22: =HLOOKUP($C$14,$B$2:$E$11,4,TRUE) -> 0 | C22: =HLOOKUP($C$15,$G$2:$T$11,4,TRUE) -> 0 | D22: =C22 -> 0 | E22: 0 | F22: =IF(E22=-99,"禁止","可能") -> 可能
A23: 騎兵突撃のボーナス | B23: =HLOOKUP($C$14,$B$2:$E$11,5,TRUE) -> 5 | C23: =HLOOKUP($C$15,$G$2:$T$11,5,TRUE) -> 5 | D23: 5 | E23: 5 | F23: =IF(E23=0,"なし","移動力＋５") -> 移動力＋５
A24: 歩兵射撃の可否 補正(%) | B24: =HLOOKUP($C$14,$B$2:$E$11,6,TRUE) -> 0 | C24: =HLOOKUP($C$15,$G$2:$T$11,6,TRUE) -> 0 | D24: 0 | E24: 0 | F24: =IF(E24<=-99,"射撃不可",E24) -> 0
A25: 砲兵射撃の可否 補正(%) | B25: =HLOOKUP($C$14,$B$2:$E$11,7,TRUE) -> 0 | C25: =HLOOKUP($C$15,$G$2:$T$11,7,TRUE) -> 0 | D25: 0 | E25: 0 | F25: =IF(E25<=-99,"射撃不可",E25) -> 0
A26: 歩兵移動力補正(%) | B26: =HLOOKUP($C$14,$B$2:$E$11,8,TRUE) -> 0 | C26: =HLOOKUP($C$15,$G$2:$T$11,8,TRUE) -> 0 | D26: =IF(C26=79,天候変化!N2,C26) -> 0 | E26: 0 | F26: =E26 -> 0
A27: 騎兵移動力補正(%) | B27: =HLOOKUP($C$14,$B$2:$E$11,9,TRUE) -> 0 | C27: =HLOOKUP($C$15,$G$2:$T$11,9,TRUE) -> 0 | D27: =IF(C27=79,天候変化!O2,C27) -> 0 | E27: 0 | F27: =E27 -> 0
A28: 砲兵移動力補正(%) | B28: =HLOOKUP($C$14,$B$2:$E$11,10,TRUE) -> 0 | C28: =HLOOKUP($C$15,$G$2:$T$11,10,TRUE) -> 0 | D28: =IF(C28=79,天候変化!P2,C28) -> 0 | E28: =IF(B28<D28,B28,D28) -> 0 | F28: =E28 -> 0

Sheet 射撃結果表
A1: 0 | B1: 0 | C1: 0 | D1: 0 | E1: 0 | F1: 0 | G1: 0 | H1: 0 | I1: 0 | J1: 0 | K1: 1 | L1: 1 | M1: 1 | N1: 1 | O1: 2 | P1: 2
A2: 0 | B2: 0 | C2: 0 | D2: 0 | E2: 0 | F2: 0 | G2: 0 | H2: 0 | I2: 0 | J2: 0 | K2: 1 | L2: 1 | M2: 1 | N2: 1 | O2: 2 | P2: 2
A3: 0 | B3: 0 | C3: 0 | D3: 0 | E3: 0 | F3: 0 | G3: 0 | H3: 0 | I3: 0 | J3: 1 | K3: 1 | L3: 1 | M3: 1 | N3: 1 | O3: 2 | P3: 2
A4: 0 | B4: 0 | C4: 0 | D4: 0 | E4: 0 | F4: 0 | G4: 0 | H4: 0 | I4: 0 | J4: 1 | K4: 1 | L4: 1 | M4: 1 | N4: 1 | O4: 2 | P4: 2
A5: 0 | B5: 0 | C5: 0 | D5: 0 | E5: 0 | F5: 0 | G5: 0 | H5: 0 | I5: 0 | J5: 1 | K5: 1 | L5: 1 | M5: 1 | N5: 2 | O5: 2 | P5: 2
A6: 0 | B6: 0 | C6: 0 | D6: 0 | E6: 0 | F6: 0 | G6: 0 | H6: 0 | I6: 0 | J6: 1 | K6: 1 | L6: 1 | M6: 1 | N6: 2 | O6: 2 | P6: 2
A7: 0 | B7: 0 | C7: 0 | D7: 0 | E7: 0 | F7: 0 | G7: 0 | H7: 0 | I7: 0 | J7: 1 | K7: 1 | L7: 1 | M7: 1 | N7: 2 | O7: 2 | P7: 2
A8: 0 | B8: 0 | C8: 0 | D8: 0 | E8: 0 | F8: 0 | G8: 0 | H8: 0 | I8: 1 | J8: 1 | K8: 1 | L8: 1 | M8: 1 | N8: 2 | O8: 2 | P8: 2
A9: 0 | B9: 0 | C9: 0 | D9: 0 | E9: 0 | F9: 0 | G9: 0 | H9: 0 | I9: 1 | J9: 1 | K9: 1 | L9: 1 | M9: 2 | N9: 2 | O9: 2 | P9: 2
A10: 0 | B10: 0 | C10: 0 | D10: 0 | E10: 0 | F10: 0 | G10: 0 | H10: 0 | I10: 1 | J10: 1 | K10: 1 | L10: 1 | M10: 2 | N10: 2 | O10: 2 | P10: 2
A11: 0 | B11: 0 | C11: 0 | D11: 0 | E11: 0 | F11: 0 | G11: 0 | H11: 0 | I11: 1 | J11: 1 | K11: 1 | L11: 1 | M11: 2 | N11: 2 | O11: 2 | P11: 2
A12: 0 | B12: 0 | C12: 0 | D12: 0 | E12: 0 | F12: 0 | G12: 0 | H12: 1 | I12: 1 | J12: 1 | K12: 1 | L12: 1 | M12: 2 | N12: 2 | O12: 2 | P12: 3
A13: 0 | B13: 0 | C13: 0 | D13: 0 | E13: 0 | F13: 0 | G13: 0 | H13: 1 | I13: 1 | J13: 1 | K13: 1 | L13: 1 | M13: 2 | N13: 2 | O13: 2 | P13: 3
A14: 0 | B14: 0 | C14: 0 | D14: 0 | E14: 0 | F14: 0 | G14: 0 | H14: 1 | I14: 1 | J14: 1 | K14: 1 | L14: 1 | M14: 2 | N14: 2 | O14: 2 | P14: 3
A15: 0 | B15: 0 | C15: 0 | D15: 0 | E15: 0 | F15: 0 | G15: 1 | H15: 1 | I15: 1 | J15: 1 | K15: 1 | L15: 2 | M15: 2 | N15: 2 | O15: 2 | P15: 3
A16: 0 | B16: 0 | C16: 0 | D16: 0 | E16: 0 | F16: 0 | G16: 1 | H16: 1 | I16: 1 | J16: 1 | K16: 1 | L16: 2 | M16: 2 | N16: 2 | O16: 2 | P16: 3
A17: 0 | B17: 0 | C17: 0 | D17: 0 | E17: 0 | F17: 0 | G17: 1 | H17: 1 | I17: 1 | J17: 1 | K17: 1 | L17: 2 | M17: 2 | N17: 2 | O17: 2 | P17: 3
A18: 0 | B18: 0 | C18: 0 | D18: 0 | E18: 0 | F18: 0 | G18: 1 | H18: 1 | I18: 1 | J18: 1 | K18: 1 | L18: 2 | M18: 2 | N18: 2 | O18: 2 | P18: 3
A19: 0 | B19: 0 | C19: 0 | D19: 0 | E19: 0 | F19: 0 | G19: 1 | H19: 1 | I19: 1 | J19: 1 | K19: 1 | L19: 2 | M19: 2 | N19: 2 | O19: 2 | P19: 3
A20: 0 | B20: 0 | C20: 0 | D20: 0 | E20: 0 | F20: 1 | G20: 1 | H20: 1 | I20: 1 | J20: 1 | K20: 1 | L20: 2 | M20: 2 | N20: 2 | O20: 3 | P20: 3
A21: 0 | B21: 0 | C21: 0 | D21: 0 | E21: 0 | F21: 1 | G21: 1 | H21: 1 | I21: 1 | J21: 1 | K21: 1 | L21: 2 | M21: 2 | N21: 2 | O21: 3 | P21: 3
A22: 0 | B22: 0 | C22: 0 | D22: 0 | E22: 0 | F22: 1 | G22: 1 | H22: 1 | I22: 1 | J22: 1 | K22: 1 | L22: 2 | M22: 2 | N22: 2 | O22: 3 | P22: 3
A23: 0 | B23: 0 | C23: 0 | D23: 0 | E23: 0 | F23: 1 | G23: 1 | H23: 1 | I23: 1 | J23: 1 | K23: 2 | L23: 2 | M23: 2 | N23: 3 | O23: 3 | P23: 3
A24: 0 | B24: 0 | C24: 0 | D24: 0 | E24: 0 | F24: 1 | G24: 1 | H24: 1 | I24: 1 | J24: 1 | K24: 2 | L24: 2 | M24: 2 | N24: 3 | O24: 3 | P24: 3
A25: 0 | B25: 0 | C25: 0 | D25: 0 | E25: 0 | F25: 1 | G25: 1 | H25: 1 | I25: 1 | J25: 1 | K25: 2 | L25: 2 | M25: 2 | N25: 3 | O25: 3 | P25: 3
A26: 0 | B26: 0 | C26: 0 | D26: 0 | E26: 1 | F26: 1 | G26: 1 | H26: 1 | I26: 1 | J26: 1 | K26: 2 | L26: 2 | M26: 3 | N26: 3 | O26: 3 | P26: 3
A27: 0 | B27: 0 | C27: 0 | D27: 0 | E27: 1 | F27: 1 | G27: 1 | H27: 1 | I27: 1 | J27: 1 | K27: 2 | L27: 2 | M27: 3 | N27: 3 | O27: 3 | P27: 3
A28: 0 | B28: 0 | C28: 0 | D28: 0 | E28: 1 | F28: 1 | G28: 1 | H28: 1 | I28: 1 | J28: 2 | K28: 2 | L28: 2 | M28: 3 | N28: 3 | O28: 3 | P28: 3
A29: 0 | B29: 0 | C29: 0 | D29: 1 | E29: 1 | F29: 1 | G29: 1 | H29: 1 | I29: 1 | J29: 2 | K29: 2 | L29: 2 | M29: 3 | N29: 3 | O29: 3 | P29: 4
A30: 0 | B30: 0 | C30: 0 | D30: 1 | E30: 1 | F30: 1 | G30: 1 | H30: 1 | I30: 1 | J30: 2 | K30: 2 | L30: 2 | M30: 3 | N30: 3 | O30: 3 | P30: 4
A31: 0 | B31: 0 | C31: 0 | D31: 1 | E31: 1 | F31: 1 | G31: 1 | H31: 1 | I31: 1 | J31: 2 | K31: 2 | L31: 2 | M31: 3 | N31: 3 | O31: 3 | P31: 4
A32: 0 | B32: 0 | C32: 1 | D32: 1 | E32: 1 | F32: 1 | G32: 1 | H32: 1 | I32: 1 | J32: 2 | K32: 2 | L32: 3 | M32: 3 | N32: 3 | O32: 3 | P32: 4
A33: 0 | B33: 0 | C33: 1 | D33: 1 | E33: 1 | F33: 1 | G33: 1 | H33: 1 | I33: 1 | J33: 2 | K33: 2 | L33: 3 | M33: 3 | N33: 3 | O33: 4 | P33: 4
A34: 0 | B34: 1 | C34: 1 | D34: 1 | E34: 1 | F34: 1 | G34: 1 | H34: 1 | I34: 1 | J34: 2 | K34: 2 | L34: 3 | M34: 3 | N34: 3 | O34: 4 | P34: 4
A35: 1 | B35: 1 | C35: 1 | D35: 1 | E35: 1 | F35: 1 | G35: 1 | H35: 1 | I35: 1 | J35: 2 | K35: 2 | L35: 3 | M35: 3 | N35: 3 | O35: 4 | P35: 5
A36: 1 | B36: 1 | C36: 1 | D36: 1 | E36: 1 | F36: 1 | G36: 1 | H36: 1 | I36: 1 | J36: 2 | K36: 2 | L36: 3 | M36: 3 | N36: 4 | O36: 4 | P36: 5
A37: 1/3 | B37: 1/2.5 | C37: 1/2 | D37: 1/1.5 | E37: 1/1 | F37: 1.5/1 | G37: 2/1 | H37: 2.5/1 | I37: 3/1 | J37: 4/1 | K37: 5/1 | L37: 6/1 | M37: 7/1 | N37: 8/1 | O37: 9/1 | P37: 10/1

Sheet 白兵戦結果表
A1: AR | B1: AD | C1: AD | D1: AD | H1: *2/1 | I1: 3/2 | J1: DD
A2: AR | B2: AD | C2: AD | H2: 1/2 | I2: DD | J2: DD
A3: AR | B3: AD | G3: *2/2 | H3: 0/2 | I3: DD | J3: DD
A4: AR | B4: AD | G4: 3/3 | H4: 0/1* | I4: DD | J4: DD
A5: AD | B5: AD | G5: 2/4 | H5: 1/1* | I5: DD | J5: DD
A6: AD | F6: 0/0* | G6: 3/1 | H6: DD | I6: DD | J6: DD
A7: AD | F7: 2/3 | G7: 0/1* | H7: DD | I7: DD | J7: DD
A8: AD | F8: 0/2 | G8: DD | H8: DD | I8: DD | J8: DD
A9: AD | E9: 1/4 | F9: *2/0 | G9: DD | H9: DD | I9: DD | J9: DD
A10: AD | E10: 2/3 | F10: 1/2 | G10: DD | H10: DD | I10: DD | J10: DD
A11: AD | D11: 0/3 | E11: *0/0 | F11: 0/1 | G11: DD | H11: DD | I11: DD | J11: DD
A12: AD | D12: 1/2 | E12: 1/1* | F12: *2/3 | G12: DD | H12: DD | I12: DD | J12: DD
A13: AD | D13: *2/1 | E13: 2/3* | F13: 1/2* | G13: DD | H13: DD | I13: DD | J13: DD
A14: AD | E14: 3/3 | F14: DD | G14: DD | H14: DD | I14: DD | J14: DD
A15: AD | C15: 1/2 | D15: 0/1* | E15: 0/1 | F15: DD | G15: DD | H15: DD | I15: DD | J15: DR
A16: AD | D16: 1/0 | E16: 1/0 | F16: DD | G16: DD | H16: DD | I16: DD | J16: DR
C17: 1/1 | D17: 3/2 | E17: 2/2* | F17: DD | G17: DD | H17: DD | I17: DD | J17: DR
C18: *2/0 | D18: 1/1 | E18: DD | F18: DD | G18: DD | H18: DD | I18: DD | J18: DR
C19: 0/1* | D19: 2/2* | E19: DD | F19: DD | G19: DD | H19: DD | I19: DD | J19: DR
B20: *2/0 | C20: 1/1 | D20: *1/2 | E20: DD | F20: DD | G20: DD | H20: DD | I20: DR | J20: DR
B21: 2/1* | C21: 2/2* | D21: *1/1 | E21: DD | F21: DD | G21: DD | H21: DD | I21: DR | J21: DR
B22: 2/1 | C22: 3/1 | D22: 0/2* | E22: DD | F22: DD | G22: DD | H22: DD | I22: DR | J22: DR
B23: *1/1 | C23: 0/2 | D23: DD | E23: DD | F23: DD | G23: DD | H23: DD | I23: DR | J23: DR
B24: 1/2 | C24: 2/1 | D24: DD | E24: DD | F24: DD | G24: DD | H24: DD | I24: DR | J24: DR
B25: 1/1 | C25: 1/1* | D25: DD | E25: DD | F25: DD | G25: DD | H25: DD | I25: DR | J25: DR
A26: *0/0 | B26: 0/0* | C26: *2/1 | D26: DD | E26: DD | F26: DD | G26: DD | H26: DD | I26: DR | J26: DR
A27: 1/1 | B27: 2/1 | C27: DD | D27: DD | E27: DD | F27: DD | G27: DD | H27: DD | I27: DR | J27: DR
A28: 1/2* | B28: *1/2 | C28: DD | D28: DD | E28: DD | F28: DD | G28: DD | H28: DD | I28: DR | J28: DR
A29: 0/1 | B29: 2/2 | C29: DD | D29: DD | E29: DD | F29: DD | G29: DD | H29: DD | I29: DR | J29: DR
A30: 1/0* | C30: DD | D30: DD | E30: DD | F30: DD | G30: DD | H30: DR | I30: DR | J30: DR
A31: 0/2 | B31: 1/0* | C31: DD | D31: DD | E31: DD | F31: DD | G31: DD | H31: DR | I31: DR | J31: DR
A32: 2/1* | B32: DD | C32: DD | D32: DD | E32: DD | F32: DD | G32: DR | H32: DR | I32: DR | J32: DS
B33: DD | C33: DD | D33: DD | E33: DD | F33: DD | G33: DR | H33: DR | I33: DR | J33: DS
A34: 2/2 | B34: DD | C34: DD | D34: DD | E34: DD | F34: DD | G34: DR | H34: DR | I34: DR | J34: DS
A35: DD | B35: DD | C35: DD | D35: DD | E35: DD | F35: DR | G35: DR | H35: DR | I35: DR | J35: DS
A36: DD | B36: DD | C36: DD | D36: DD | E36: DD | F36: DR | G36: DR | H36: DR | I36: DS | J36: DS
A37: 1/2 | B37: 1/1 | C37: 1.5/1 | D37: 2/1 | E37: 2.5/1 | F37: 3/1 | G37: 3.5/1 | H37: 4/1 | I37: 4.5/1 | J37: 5/1
A41: space | B41: AD | C41: AR | D41: DD | E41: DR | F41: DS
A42: * | B42: n | C42: / | D42: m | E42: *

Sheet 攻撃係数
A1: 隊形 | D1: 歩兵 | E1: 騎兵 | F1: 砲兵 | H1: 隊形の特殊条件
B2: 1 | C2: 縦隊 | D2: 1 | E2: 1 | F2: 0 | I2: 騎兵種類による補正(99)
B3: 2 | C3: 横隊 | D3: 1 | E3: 99 | F3: 0 | J3: 重騎兵（移動力が１２以下） | K3: 0.5
B4: 3 | C4: 散開隊形 | D4: 0.5 | E4: 0.5 | F4: 0 | J4: 軽騎兵（移動力が１３以上） | K4: 1
B5: 4 | C5: 一般隊形 | D5: 1 | E5: 0.33 | F5: 0 | I5: 騎兵同士の戦い
B6: 5 | C6: 行軍隊形 | D6: 0.25 | E6: 0.25 | F6: 0 | I6: 1 | J6: 重騎兵補正 | K6: 2
B7: 6 | C7: 方陣 | D7: 1 | E7: 0 | F7: 0
B8: 7 | C8: 大隊密集 | D8: 1 | E8: 0 | F8: 0
B9: 8 | C9: 師団密集 | D9: 1 | E9: 0 | F9: 0
B10: 9 | C10: 牽引隊形 | D10: 0 | E10: 0 | F10: 1
B11: 10 | C11: 展開隊形 | D11: 0 | E11: 0 | F11: 1
B12: 11 | C12: 混乱 | D12: 0.5 | E12: 0.5 | F12: 0.5
B13: 12 | C13: 潰走 | D13: 0.33 | E13: 0.25 | F13: 0.33
A15: 騎兵疲労状態 | H15: 騎兵突撃
B16: 1 | C16: 通常 | D16: 1 | I16: 1 | J16: 通常突撃 | K16: 2
B17: 2 | C17: 疲労 | D17: 0.5
B18: 3 | C18: 損耗 | D18: 0.33
A20: 攻撃側の補正
B21: 攻撃方向
B22: 1 | C22: 側面 | D22: 2
B23: 2 | C23: 背面 | D23: 1.5
B24: 地形
B25: 1 | C25: 小川を渡る攻撃 | D25: 0.66
B27: 方陣攻撃の兵科補正
C28: 攻撃側が歩兵 | D28: 1.5
C29: 攻撃側が騎兵 | D29: 0.33

Sheet 突撃補正
B1: 項目 | C1: 補正値 | D1: 自家修正
A2: 攻撃方向
B3: 正面からの騎兵突撃 | C3: 0
B4: 側面からの騎兵突撃 | C4: -12
B5: 背面からの騎兵突撃 | C5: -6
A7: 小川を渡る突撃
B8: 無し | C8: 0
B9: 有り | C9: 6
A11: 騎兵の種類
B12: 下記以外の騎兵による突撃 | C12: 0
B13: 槍騎兵による突撃 | C13: -6
B14: 重騎兵による突撃 | C14: -3
A16: 防御側の隊形
B17: 縦隊 | C17: 0
B18: 横隊 | C18: 3
B19: 散開隊形 | C19: 0
B20: 一般隊形 | C20: 0
B21: 行軍隊形 | C21: 0
B22: 方陣 | C22: 0
B23: 大隊密集 | C23: 3
B24: 師団密集 | C24: 2
B25: 牽引隊形 | C25: 0
B26: 展開隊形 | C26: 0
B27: 混乱 | C27: -3 | D27: -6 | E27: 基本の補正と重複する分を引いて－３
B28: 潰走 | C28: 0

Sheet 戦力補正
B1: 修正値
A2: 戦力比 | B2: 攻撃側 | C2: 防御側
A3: １未満 | B3: -6 | C3: 6
A4: 1 | B4: -3 | C4: 3
A5: 2 | B5: 0 | C5: 0
A6: 3 | B6: 3 | C6: -3
A7: 4 | B7: 6 | C7: -6
A8: 5 | B8: 9 | C8: -9

Sheet 白兵補正
C1: 補正値 | E1: 自家修正前
B2: 項目 | C2: 攻撃側 | D2: 防御側 | E2: 攻撃側 | F2: 防御側
A3: 攻撃方向
B4: 正面からの強襲 | C4: 0 | D4: 0
B5: 側面からの強襲 | C5: 12 | D5: -12
B6: 背面からの強襲 | C6: 6 | D6: -6
A8: 障害地形をまたぐ強襲
B9: 障害地形なし
B10: 登坂による強襲 | C10: -3 | D10: 3
B11: 小川を渡る強襲 | C11: -3 | D11: 3
B12: 登坂と小川の両方 | C12: -6 | D12: 6
A14: 防御側の隊形
B15: 縦隊 | C15: 0 | D15: 0
B16: 横隊 | C16: 0 | D16: -3
B17: 散開隊形 | C17: 0 | D17: -6
B18: 一般隊形 | C18: 0 | D18: 0
B19: 行軍隊形 | C19: 0 | D19: 0
B20: 方陣 | C20: 0 | D20: 0 | E20: 6 | G20: 基本の補正と重複するので０
B21: 大隊密集 | C21: 0 | D21: 0
B22: 師団密集 | C22: 0 | D22: 0
B23: 牽引隊形 | C23: 0 | D23: 0
B24: 展開隊形 | C24: 0 | D24: 0
B25: 混乱 | C25: 3 | D25: 0 | F25: -3 | G25: 基本の補正と重複するので０
B26: 潰走 | C26: 6 | D26: 0 | F26: -6 | G26: 基本の補正と重複するので０
